Body Name,Body,Service division categorisation,Expense Type,Date paid,Transaction Reference,Net,Supplier Name,Redacted/Excluded
East Lindsey District Council,http://statistics.data.gov.uk/id/local-authority/32UC,Disabled Facilities Grant,Grants and Contributions to Outside Bodies- No Service Recei,05/04/12,IJ00008219,1000.3,A & B BUILDERS, 
East Lindsey District Council,http://statistics.data.gov.uk/id/local-authority/32UC,Imp.Grants,Other Revenue Grants Reimbursements & Contributions (Govt),05/04/12,IJ00008219,-479.01,A & B BUILDERS, 
East Lindsey District Council,http://statistics.data.gov.uk/id/local-authority/32UC,Donations,Grants and Contributions to Outside Bodies- No Service Recei,05/04/12,IJ00008288,2400,AGE CONCERN LINDSEY, 
East Lindsey District Council,http://statistics.data.gov.uk/id/local-authority/32UC,Donations,Grants and Contributions to Outside Bodies- No Service Recei,05/04/12,IJ00008264,3662.5,AGE CONCERN LINDSEY, 
East Lindsey District Council,http://statistics.data.gov.uk/id/local-authority/32UC,"Gardeners Rest Room, Tower Esp.Skegness",Buildings Maintenance - Responsive,05/04/12,IJ00008230,877,ALLDREAD MAINTENANCE SERVICES, 
East Lindsey District Council,http://statistics.data.gov.uk/id/local-authority/32UC,Waste Services Manager,Maintenance,05/04/12,IJ00008210,590.96,B A BUSH & SON LIMITED, 
East Lindsey District Council,http://statistics.data.gov.uk/id/local-authority/32UC,Building Control Partnership,Professional & Contractors Fees,05/04/12,IJ00008336,800,C R PARROTT CONSULTANTS LIMITED, 
East Lindsey District Council,http://statistics.data.gov.uk/id/local-authority/32UC,Coastal Tourism Development,Other Miscellaneous Expenses,05/04/12,IJ00008316,2000,CELIA LACY CONSULTING UK, 
East Lindsey District Council,http://statistics.data.gov.uk/id/local-authority/32UC,Theatre Manager,Performers and Entertainers Fees,05/04/12,IJ00008282,3995.61,CHARLIE LANDSBOROUGH ENTERPRISE, 
East Lindsey District Council,http://statistics.data.gov.uk/id/local-authority/32UC,Foreshore Enhancements,Buildings Maintenance - Programmed,05/04/12,IJ00008239,1488,D & D ENGINEERING (LINCS) LTD, 
East Lindsey District Council,http://statistics.data.gov.uk/id/local-authority/32UC,Foreshore Enhancements,Buildings Maintenance - Programmed,05/04/12,IJ00008240,7983.54,D & D ENGINEERING (LINCS) LTD, 
East Lindsey District Council,http://statistics.data.gov.uk/id/local-authority/32UC,ED: Special Projects,Other Miscellaneous Expenses,05/04/12,IJ00008247,550,D MONK, 
East Lindsey District Council,http://statistics.data.gov.uk/id/local-authority/32UC,London Road Sports Centre,Furniture and Equipment,05/04/12,IJ00008179,782.34,DAVID WELLS, 
East Lindsey District Council,http://statistics.data.gov.uk/id/local-authority/32UC,Horncastle Pool Manager,Purchase Of Goods For Resale,05/04/12,IJ00008174,1676.79,DEE BEE, 
East Lindsey District Council,http://statistics.data.gov.uk/id/local-authority/32UC,Meridian Leisure Centre,Other Miscellaneous Expenses,05/04/12,IJ00008393,675.28,DEE BEE, 
East Lindsey District Council,http://statistics.data.gov.uk/id/local-authority/32UC,Disabled Facilities Grant,Grants and Contributions to Outside Bodies- No Service Recei,05/04/12,IJ00008215,6900.42,DENNISS & MARWOOD, 
East Lindsey District Council,http://statistics.data.gov.uk/id/local-authority/32UC,Imp.Grants,Other Revenue Grants Reimbursements & Contributions (Govt),05/04/12,IJ00008215,-616.11,DENNISS & MARWOOD, 
East Lindsey District Council,http://statistics.data.gov.uk/id/local-authority/32UC,Meridian Leisure Centre,Public Courses and Workshops,05/04/12,IJ00008163,810,DONNA MAHER, 
East Lindsey District Council,http://statistics.data.gov.uk/id/local-authority/32UC,Fairfield Enterprise Centre,Buildings Maintenance - Responsive,05/04/12,IJ00008232,1995,EAGLE STRUCTURAL LTD, 
East Lindsey District Council,http://statistics.data.gov.uk/id/local-authority/32UC,"South Street Play Area, Alford",Other Private Contractors,05/04/12,IJ00008177,517,EKM LTD, 
East Lindsey District Council,http://statistics.data.gov.uk/id/local-authority/32UC,Play Area Watts Lane Louth,Other Private Contractors,05/04/12,IJ00008177,185,EKM LTD, 
East Lindsey District Council,http://statistics.data.gov.uk/id/local-authority/32UC,Caravan Park(Kingfisher) Ingoldmells,Gas,05/04/12,IJ00008389,141.07,ESPO, 
East Lindsey District Council,http://statistics.data.gov.uk/id/local-authority/32UC,Embassy Pool Manager,Gas,05/04/12,IJ00008389,1754.32,ESPO, 
East Lindsey District Council,http://statistics.data.gov.uk/id/local-authority/32UC,Horncastle Pool Manager,Gas,05/04/12,IJ00008389,1912.58,ESPO, 
East Lindsey District Council,http://statistics.data.gov.uk/id/local-authority/32UC,London Road Sports Centre,Gas,05/04/12,IJ00008389,348.26,ESPO, 
East Lindsey District Council,http://statistics.data.gov.uk/id/local-authority/32UC,Playing Fields Wood Lane Louth,Gas,05/04/12,IJ00008389,4.18,ESPO, 
East Lindsey District Council,http://statistics.data.gov.uk/id/local-authority/32UC,Fairfield Enterprise Centre,Gas,05/04/12,IJ00008389,415.33,ESPO, 
East Lindsey District Council,http://statistics.data.gov.uk/id/local-authority/32UC,Skegness Managed Workspace,Gas,05/04/12,IJ00008389,11.42,ESPO, 
East Lindsey District Council,http://statistics.data.gov.uk/id/local-authority/32UC,Managed Workspace Golf Road Mablethorpe,Gas,05/04/12,IJ00008389,390.42,ESPO, 
East Lindsey District Council,http://statistics.data.gov.uk/id/local-authority/32UC,"High Street Toilets, Spilsby",Gas,05/04/12,IJ00008389,20.47,ESPO, 
East Lindsey District Council,http://statistics.data.gov.uk/id/local-authority/32UC,Playing Fields(Memorial) Wainfleet Skeg,Gas,05/04/12,IJ00008389,102.6,ESPO, 
East Lindsey District Council,http://statistics.data.gov.uk/id/local-authority/32UC,Playing Fields(Memorial) Wainfleet Skeg,Gas,05/04/12,IJ00008389,859.73,ESPO, 
East Lindsey District Council,http://statistics.data.gov.uk/id/local-authority/32UC,Playing Fields(Memorial) Wainfleet Skeg,Gas,05/04/12,IJ00008389,585.71,ESPO, 
East Lindsey District Council,http://statistics.data.gov.uk/id/local-authority/32UC,Playing Fields(Memorial) Wainfleet Skeg,Gas,05/04/12,IJ00008389,-1159.28,ESPO, 
East Lindsey District Council,http://statistics.data.gov.uk/id/local-authority/32UC,Sports Centre Manager,Gas,05/04/12,IJ00008389,413.73,ESPO, 
East Lindsey District Council,http://statistics.data.gov.uk/id/local-authority/32UC,Louth Town Hall,Gas,05/04/12,IJ00008389,1230.74,ESPO, 
East Lindsey District Council,http://statistics.data.gov.uk/id/local-authority/32UC,Skegness Town Hall,Gas,05/04/12,IJ00008389,2863.57,ESPO, 
East Lindsey District Council,http://statistics.data.gov.uk/id/local-authority/32UC,Alford Corn Exchange,Gas,05/04/12,IJ00008389,411.86,ESPO, 
East Lindsey District Council,http://statistics.data.gov.uk/id/local-authority/32UC,Alford Corn Exchange,Gas,05/04/12,IJ00008389,7.21,ESPO, 
East Lindsey District Council,http://statistics.data.gov.uk/id/local-authority/32UC,Theatre Manager,Gas,05/04/12,IJ00008389,1688.48,ESPO, 
East Lindsey District Council,http://statistics.data.gov.uk/id/local-authority/32UC,"Pattinson House, Manby",Gas,05/04/12,IJ00008389,1238.98,ESPO, 
East Lindsey District Council,http://statistics.data.gov.uk/id/local-authority/32UC,"Pattinson House, Manby",Gas,05/04/12,IJ00008389,698.56,ESPO, 
East Lindsey District Council,http://statistics.data.gov.uk/id/local-authority/32UC,"Pattinson House, Manby",Gas,05/04/12,IJ00008389,-655.12,ESPO, 
East Lindsey District Council,http://statistics.data.gov.uk/id/local-authority/32UC,Mablethorpe Area Office & Library,Gas,05/04/12,IJ00008389,226.21,ESPO, 
East Lindsey District Council,http://statistics.data.gov.uk/id/local-authority/32UC,Mablethorpe Area Office & Library,Gas,05/04/12,IJ00008389,763.03,ESPO, 
East Lindsey District Council,http://statistics.data.gov.uk/id/local-authority/32UC,Mablethorpe Area Office & Library,Gas,05/04/12,IJ00008389,372.82,ESPO, 
East Lindsey District Council,http://statistics.data.gov.uk/id/local-authority/32UC,Mablethorpe Area Office & Library,Gas,05/04/12,IJ00008389,-262.4,ESPO, 
East Lindsey District Council,http://statistics.data.gov.uk/id/local-authority/32UC,Mablethorpe Area Office & Library,Gas,05/04/12,IJ00008389,-429.79,ESPO, 
East Lindsey District Council,http://statistics.data.gov.uk/id/local-authority/32UC,"Old Area Office, Victoria Rd, Mab",Gas,05/04/12,IJ00008389,343.87,ESPO, 
East Lindsey District Council,http://statistics.data.gov.uk/id/local-authority/32UC,"Meridian House,Eastgate,Louth",Gas,05/04/12,IJ00008389,226.84,ESPO, 
East Lindsey District Council,http://statistics.data.gov.uk/id/local-authority/32UC,East Lindsey CLP Wood Lane,Works to Buildings (main Contractor),05/04/12,IJ00008272,1365.96,FLEXI DIG LIMITED, 
East Lindsey District Council,http://statistics.data.gov.uk/id/local-authority/32UC,East Lindsey CLP Wood Lane,Works to Buildings (main Contractor),05/04/12,IJ00008274,1408,FLEXI DIG LIMITED, 
East Lindsey District Council,http://statistics.data.gov.uk/id/local-authority/32UC,Mablethorpe Area Office & Library,Buildings Maintenance - Responsive,05/04/12,IJ00008255,1352.15,FRED MARGARSON LTD., 
East Lindsey District Council,http://statistics.data.gov.uk/id/local-authority/32UC,Members Expenses General,Grants and Contributions to Outside Bodies- No Service Recei,05/04/12,IJ00008234,500,FRISKNEY PARISH COUNCIL, 
East Lindsey District Council,http://statistics.data.gov.uk/id/local-authority/32UC,ED: Feasibility Studies,Grants and Contributions to Outside Bodies- No Service Recei,05/04/12,IJ00008321,2652,GN CONSTRUCTION LTD, 
East Lindsey District Council,http://statistics.data.gov.uk/id/local-authority/32UC,Meridian Leisure Centre,Buildings Maintenance - Responsive,05/04/12,IJ00008268,2069.89,H20 SERVICING LTD, 
East Lindsey District Council,http://statistics.data.gov.uk/id/local-authority/32UC,Disabled Facilities Grant,Grants and Contributions to Outside Bodies- No Service Recei,05/04/12,IJ00008218,3814.8,HALLMARK SUNDECKS LTD, 
East Lindsey District Council,http://statistics.data.gov.uk/id/local-authority/32UC,Imp.Grants,Other Revenue Grants Reimbursements & Contributions (Govt),05/04/12,IJ00008218,-1074.83,HALLMARK SUNDECKS LTD, 
East Lindsey District Council,http://statistics.data.gov.uk/id/local-authority/32UC,Donations,Grants and Contributions to Outside Bodies- No Service Recei,05/04/12,IJ00008183,3695,HOMESTART EAST LINDSEY, 
East Lindsey District Council,http://statistics.data.gov.uk/id/local-authority/32UC,Members Expenses General,Grants and Contributions to Outside Bodies- No Service Recei,05/04/12,IJ00008228,950,HORSINGTON VILLAGE HALL, 
East Lindsey District Council,http://statistics.data.gov.uk/id/local-authority/32UC,Members Expenses General,Grants and Contributions to Outside Bodies- No Service Recei,05/04/12,IJ00008241,500,HUNDLEBY PARISH COUNCIL, 
East Lindsey District Council,http://statistics.data.gov.uk/id/local-authority/32UC,"Dunes Theatre Toilets, Mablethorpe",Buildings Maintenance - Programmed,05/04/12,IJ00008265,1092.57,J MELTON LTD, 
East Lindsey District Council,http://statistics.data.gov.uk/id/local-authority/32UC,Meridian Leisure Centre,Materials and Consumables,05/04/12,IJ00008307,807.18,J P LENNARD LTD, 
East Lindsey District Council,http://statistics.data.gov.uk/id/local-authority/32UC,ELPH-Disabled Facilities Grant,Grants and Contributions to Outside Bodies- No Service Recei,05/04/12,IJ00008217,4985.91,J SIVILL LTD, 
East Lindsey District Council,http://statistics.data.gov.uk/id/local-authority/32UC,Imp.Grants,Other Revenue Grants Reimbursements & Contributions (Govt),05/04/12,IJ00008217,-445.17,J SIVILL LTD, 
East Lindsey District Council,http://statistics.data.gov.uk/id/local-authority/32UC,Capital Maintenance,Works to Buildings (main Contractor),05/04/12,IJ00008237,9515.05,JOHN MARTIN-HOYES LTD, 
East Lindsey District Council,http://statistics.data.gov.uk/id/local-authority/32UC,Dunes Theatre,Buildings Maintenance - Responsive,05/04/12,IJ00008233,1741.65,KENMOR BUILDING & CONSTRUCTION SERVICES, 
East Lindsey District Council,http://statistics.data.gov.uk/id/local-authority/32UC,ELPH-Disabled Facilities Grant,Grants and Contributions to Outside Bodies- No Service Recei,05/04/12,IJ00008223,6022.48,KES BUILDING MAINTENANCE LTD, 
East Lindsey District Council,http://statistics.data.gov.uk/id/local-authority/32UC,Imp.Grants,Other Revenue Grants Reimbursements & Contributions (Govt),05/04/12,IJ00008223,-537.72,KES BUILDING MAINTENANCE LTD, 
East Lindsey District Council,http://statistics.data.gov.uk/id/local-authority/32UC,ED: Special Projects,Other Miscellaneous Expenses,05/04/12,IJ00008243,1207.5,KURNIA INTERTRADE CO LTD, 
East Lindsey District Council,http://statistics.data.gov.uk/id/local-authority/32UC,Public,Works to Buildings (main Contractor),05/04/12,IJ00008253,42624.87,Langwith Builders Ltd, 
East Lindsey District Council,http://statistics.data.gov.uk/id/local-authority/32UC,Theatre Manager,Performers and Entertainers Fees,05/04/12,IJ00008283,4733.74,LEE JAMES ASSOCIATES LIMITED, 
East Lindsey District Council,http://statistics.data.gov.uk/id/local-authority/32UC,Theatre Manager,Performers and Entertainers Fees,05/04/12,IJ00008283,-150,LEE JAMES ASSOCIATES LIMITED, 
East Lindsey District Council,http://statistics.data.gov.uk/id/local-authority/32UC,Shared Legal Services,Lincolnshire Legal Services,05/04/12,IJ00008172,17908.6,LINCOLNSHIRE COUNTY COUNCIL, 
East Lindsey District Council,http://statistics.data.gov.uk/id/local-authority/32UC,Shared Legal Services,Lincolnshire Legal Services,05/04/12,IJ00008172,2054.5,LINCOLNSHIRE COUNTY COUNCIL, 
East Lindsey District Council,http://statistics.data.gov.uk/id/local-authority/32UC,Theatre Manager,Performers and Entertainers Fees,05/04/12,IJ00008281,1591.72,LINCOLNSHIRE COUNTY COUNCIL, 
East Lindsey District Council,http://statistics.data.gov.uk/id/local-authority/32UC,Theatre Manager,Performers and Entertainers Fees,05/04/12,IJ00008281,-186,LINCOLNSHIRE COUNTY COUNCIL, 
East Lindsey District Council,http://statistics.data.gov.uk/id/local-authority/32UC,Markets General,Agency Staff,05/04/12,IJ00008285,2121,LINCS MOTORHOMES LTD, 
East Lindsey District Council,http://statistics.data.gov.uk/id/local-authority/32UC,Caravan Park(Kingfisher) Ingoldmells,Buildings Maintenance - Programmed,05/04/12,IJ00008227,655,LINCS PUMPS & PIPELINES LTD, 
East Lindsey District Council,http://statistics.data.gov.uk/id/local-authority/32UC,Caravan Park(Kingfisher) Ingoldmells,Buildings Maintenance - Programmed,05/04/12,IJ00008229,976,LINCS PUMPS & PIPELINES LTD, 
East Lindsey District Council,http://statistics.data.gov.uk/id/local-authority/32UC,Horncastle Pool Manager,Furniture and Equipment,05/04/12,IJ00008354,2857.14,LUDAFLORS, 
East Lindsey District Council,http://statistics.data.gov.uk/id/local-authority/32UC,Arts Development - SO,Furniture and Equipment,05/04/12,IJ00008317,15444,MAGNETIC EVENTS LTD, 
East Lindsey District Council,http://statistics.data.gov.uk/id/local-authority/32UC,Foreshore Enhancements,Materials and Consumables,05/04/12,IJ00008303,2112,MARK FORT GARDENING, 
East Lindsey District Council,http://statistics.data.gov.uk/id/local-authority/32UC,LDV Convoy R559 WJF,Commercial Vehicle Lease,05/04/12,IJ00008304,376.97,MAY GURNEY FLEET & PASSENGER SERVICES LTD, 
East Lindsey District Council,http://statistics.data.gov.uk/id/local-authority/32UC,Area 2,Commercial Vehicle Lease,05/04/12,IJ00008304,436.93,MAY GURNEY FLEET & PASSENGER SERVICES LTD, 
East Lindsey District Council,http://statistics.data.gov.uk/id/local-authority/32UC,Area 6,Commercial Vehicle Lease,05/04/12,IJ00008304,1120.38,MAY GURNEY FLEET & PASSENGER SERVICES LTD, 
East Lindsey District Council,http://statistics.data.gov.uk/id/local-authority/32UC,Area 4,Commercial Vehicle Lease,05/04/12,IJ00008304,14903.22,MAY GURNEY FLEET & PASSENGER SERVICES LTD, 
East Lindsey District Council,http://statistics.data.gov.uk/id/local-authority/32UC,Area 3,Commercial Vehicle Lease,05/04/12,IJ00008304,415.96,MAY GURNEY FLEET & PASSENGER SERVICES LTD, 
East Lindsey District Council,http://statistics.data.gov.uk/id/local-authority/32UC,Technical Services Team Leader,Commercial Vehicle Lease,05/04/12,IJ00008304,308.65,MAY GURNEY FLEET & PASSENGER SERVICES LTD, 
East Lindsey District Council,http://statistics.data.gov.uk/id/local-authority/32UC,Markets General,Commercial Vehicle Lease,05/04/12,IJ00008304,1693.17,MAY GURNEY FLEET & PASSENGER SERVICES LTD, 
East Lindsey District Council,http://statistics.data.gov.uk/id/local-authority/32UC,Waste Services Manager,Commercial Vehicle Lease,05/04/12,IJ00008304,283972.97,MAY GURNEY FLEET & PASSENGER SERVICES LTD, 
East Lindsey District Council,http://statistics.data.gov.uk/id/local-authority/32UC,R & R Fund (Vehicles & Equipment),"Purchase of Plant, Machinery & Equipment",05/04/12,IJ00008175,113055,METRIC GROUP LTD, 
East Lindsey District Council,http://statistics.data.gov.uk/id/local-authority/32UC,R & R Fund (Vehicles & Equipment),"Purchase of Plant, Machinery & Equipment",05/04/12,IJ00008176,11200,METRIC GROUP LTD, 
East Lindsey District Council,http://statistics.data.gov.uk/id/local-authority/32UC,Theatre Manager,Performers and Entertainers Fees,05/04/12,IJ00008280,1456.69,MORNINGSIDE MANAGEMENT LTD, 
East Lindsey District Council,http://statistics.data.gov.uk/id/local-authority/32UC,Theatre Manager,Performers and Entertainers Fees,05/04/12,IJ00008280,-150,MORNINGSIDE MANAGEMENT LTD, 
East Lindsey District Council,http://statistics.data.gov.uk/id/local-authority/32UC,Corporate Management,Postages,05/04/12,IJ00008391,9000,NEOPOST LTD, 
East Lindsey District Council,http://statistics.data.gov.uk/id/local-authority/32UC,Inland Tourism Development,Other Miscellaneous Expenses,05/04/12,IJ00008187,1050,NEW MIND INTERNET CONSULTANCY LTD, 
East Lindsey District Council,http://statistics.data.gov.uk/id/local-authority/32UC,Donations,Grants and Contributions to Outside Bodies- No Service Recei,05/04/12,IJ00008182,2000,NICHOLS YOUTH PROJECT, 
East Lindsey District Council,http://statistics.data.gov.uk/id/local-authority/32UC,Car Parks General,Other Miscellaneous Expenses,05/04/12,IJ00008200,2164,PAPERWORK UK LTD, 
East Lindsey District Council,http://statistics.data.gov.uk/id/local-authority/32UC,Car Parks General,"Books, Magazines and Other Publications",05/04/12,IJ00008200,3.28,PAPERWORK UK LTD, 
East Lindsey District Council,http://statistics.data.gov.uk/id/local-authority/32UC,TL IT - System Support,Computer Hardware Purchase,05/04/12,IJ00008346,19300,RA INFORMATION SYSTEMS, 
East Lindsey District Council,http://statistics.data.gov.uk/id/local-authority/32UC,Car Parks General,Other Miscellaneous Expenses,05/04/12,IJ00008251,4862.59,RIGGOTT & CO LTD, 
East Lindsey District Council,http://statistics.data.gov.uk/id/local-authority/32UC,London Road Sports Centre,Buildings Maintenance - Responsive,05/04/12,IJ00008259,723.26,SEYMOUR & CASTLE LTD, 
East Lindsey District Council,http://statistics.data.gov.uk/id/local-authority/32UC,Solar PV Project,Works to Buildings (main Contractor),05/04/12,IJ00008277,44531.51,SEYMOUR & CASTLE LTD, 
East Lindsey District Council,http://statistics.data.gov.uk/id/local-authority/32UC,Solar PV Project,VAT Customs and Excise,05/04/12,IJ00008278,2020.36,SEYMOUR & CASTLE LTD, 
East Lindsey District Council,http://statistics.data.gov.uk/id/local-authority/32UC,Solar PV Project,VAT Customs and Excise,05/04/12,IJ00008284,2645.87,SEYMOUR & CASTLE LTD, 
East Lindsey District Council,http://statistics.data.gov.uk/id/local-authority/32UC,Solar PV Project,VAT Customs and Excise,05/04/12,IJ00008286,1979.52,SEYMOUR & CASTLE LTD, 
East Lindsey District Council,http://statistics.data.gov.uk/id/local-authority/32UC,Solar PV Project,VAT Customs and Excise,05/04/12,IJ00008287,1077.12,SEYMOUR & CASTLE LTD, 
East Lindsey District Council,http://statistics.data.gov.uk/id/local-authority/32UC,Public Open Space Amos Way Sibsey,Other Miscellaneous Expenses,05/04/12,IJ00008197,956,SIBSEY PARISH COUNCIL, 
East Lindsey District Council,http://statistics.data.gov.uk/id/local-authority/32UC,Donations,Grants and Contributions to Outside Bodies- No Service Recei,05/04/12,IJ00008185,750,SIBSEY PARISH COUNCIL, 
East Lindsey District Council,http://statistics.data.gov.uk/id/local-authority/32UC,Donations,Grants and Contributions to Outside Bodies- No Service Recei,05/04/12,IJ00008292,687,SKEGNESS SEA SCOUTS, 
East Lindsey District Council,http://statistics.data.gov.uk/id/local-authority/32UC,Playing Fields(Memorial) Wainfleet Skeg,Other agencies,05/04/12,IJ00008295,10000,SKEGNESS SPORTS ASSOCIATION, 
East Lindsey District Council,http://statistics.data.gov.uk/id/local-authority/32UC,ED: Feasibility Studies,Grants and Contributions to Outside Bodies- No Service Recei,05/04/12,IJ00008320,3535.4,SKILLSREACH, 
East Lindsey District Council,http://statistics.data.gov.uk/id/local-authority/32UC,Meridian Leisure Centre,Materials and Consumables,05/04/12,IJ00008353,570.78,SLEAFORD BUILDING SERVICES LTD, 
East Lindsey District Council,http://statistics.data.gov.uk/id/local-authority/32UC,Donations,Grants and Contributions to Outside Bodies- No Service Recei,05/04/12,IJ00008184,629.21,TETNEY PLAYING FIELD & VILLAGE HALL ASSOCIATION, 
East Lindsey District Council,http://statistics.data.gov.uk/id/local-authority/32UC,Other Cleaning,Agency Staff,05/04/12,IJ00008337,1149.2,THE WORKSHOP (WISBECH) LIMITED, 
East Lindsey District Council,http://statistics.data.gov.uk/id/local-authority/32UC,Decent Homes Renovation Grants,Grants and Contributions to Outside Bodies- No Service Recei,05/04/12,IJ00008216,3147.6,THM CONSTRUCTION, 
East Lindsey District Council,http://statistics.data.gov.uk/id/local-authority/32UC,Decent Homes Renovation Grants,Grants and Contributions to Outside Bodies- No Service Recei,05/04/12,IJ00008221,2150.4,THM CONSTRUCTION, 
East Lindsey District Council,http://statistics.data.gov.uk/id/local-authority/32UC,Waste Services Manager,Staff Training Expenses,05/04/12,IJ00008300,157.5,TRANSED TRAINING LTD, 
East Lindsey District Council,http://statistics.data.gov.uk/id/local-authority/32UC,Waste Services Manager,Staff Training Expenses,05/04/12,IJ00008300,750,TRANSED TRAINING LTD, 
East Lindsey District Council,http://statistics.data.gov.uk/id/local-authority/32UC,Waste Services Manager,Staff Training Expenses,05/04/12,IJ00008301,175,TRANSED TRAINING LTD, 
East Lindsey District Council,http://statistics.data.gov.uk/id/local-authority/32UC,Waste Services Manager,Staff Training Expenses,05/04/12,IJ00008301,750,TRANSED TRAINING LTD, 
East Lindsey District Council,http://statistics.data.gov.uk/id/local-authority/32UC,Corporate Level Resources,Insurance,05/04/12,IJ00008386,202666.63,TRAVELERS INSURANCE COMPANY LIMITED, 
East Lindsey District Council,http://statistics.data.gov.uk/id/local-authority/32UC,Solar PV Project,Works to Buildings (Sub Contractors),05/04/12,IJ00008235,4598.02,TRITEC-ENERGY UK LTD, 
East Lindsey District Council,http://statistics.data.gov.uk/id/local-authority/32UC,Meridian Leisure Centre,Buildings Maintenance - Programmed,05/04/12,IJ00008269,3613.27,VARIOPOOL B V, 
East Lindsey District Council,http://statistics.data.gov.uk/id/local-authority/32UC,Caravan Park(Kingfisher) Ingoldmells,Buildings Maintenance - Programmed,05/04/12,IJ00008254,13266.04,VERE BROS (CONTRACTORS) LTD, 
East Lindsey District Council,http://statistics.data.gov.uk/id/local-authority/32UC,Arts Development - SO,Furniture and Equipment,05/04/12,IJ00008236,10000,VISITBRITAIN, 
East Lindsey District Council,http://statistics.data.gov.uk/id/local-authority/32UC,Waste Services Manager,Fuel & Oil,05/04/12,IJ00008368,14138.8,WATSON PETROLEUM LTD, 
East Lindsey District Council,http://statistics.data.gov.uk/id/local-authority/32UC,Hsg Advice & Homelessness TL,Grants and Contributions to Outside Bodies- No Service Recei,05/04/12,IJ00008299,3755.01,WEST LINDSEY DISTRICT COUNCIL, 
East Lindsey District Council,http://statistics.data.gov.uk/id/local-authority/32UC,Lincolnshire Coastal Grazing Marshes,Other Miscellaneous Expenses,12/04/12,IJ00008467,1250,Ark Ict Solutions Ltd, 
East Lindsey District Council,http://statistics.data.gov.uk/id/local-authority/32UC,Street Scene Environmental,Grounds Maintenance Contract (External),12/04/12,IJ00008435,2913.26,B & B TREE SPECIALISTS, 
East Lindsey District Council,http://statistics.data.gov.uk/id/local-authority/32UC,Section 151,Agency Staff,12/04/12,IJ00008460,12538.32,BOSTON BOROUGH COUNCIL, 
East Lindsey District Council,http://statistics.data.gov.uk/id/local-authority/32UC,Section 151,Agency Staff,12/04/12,IJ00008461,2865.17,BOSTON BOROUGH COUNCIL, 
East Lindsey District Council,http://statistics.data.gov.uk/id/local-authority/32UC,Corporate Management,Computer Hardware Purchase,12/04/12,IJ00008406,650,CHRISTOPHER DONKIN, 
East Lindsey District Council,http://statistics.data.gov.uk/id/local-authority/32UC,Compass Point Business Services,Compass Point Business Services,12/04/12,IJ00008469,426944.58,COMPASS POINT BUSINESS SERVICES, 
East Lindsey District Council,http://statistics.data.gov.uk/id/local-authority/32UC,Street Scene Environmental,Grounds Maintenance Contract (External),12/04/12,IJ00008486,10684.2,CROWDERS NURSERIES, 
East Lindsey District Council,http://statistics.data.gov.uk/id/local-authority/32UC,Foreshore Enhancements,Buildings Maintenance - Programmed,12/04/12,IJ00008441,2872.8,DEVLIN DECORATORS LTD, 
East Lindsey District Council,http://statistics.data.gov.uk/id/local-authority/32UC,Foreshore Enhancements,Buildings Maintenance - Programmed,12/04/12,IJ00008443,1148,DEVLIN DECORATORS LTD, 
East Lindsey District Council,http://statistics.data.gov.uk/id/local-authority/32UC,Gardens Northern Boating Lake Skegness,Buildings Maintenance - Programmed,12/04/12,IJ00008438,2773.92,DEVLIN DECORATORS LTD, 
East Lindsey District Council,http://statistics.data.gov.uk/id/local-authority/32UC,Gardens Southern Boating Lake Skegness,Buildings Maintenance - Programmed,12/04/12,IJ00008439,1844.08,DEVLIN DECORATORS LTD, 
East Lindsey District Council,http://statistics.data.gov.uk/id/local-authority/32UC,Gardens Southern Boating Lake Skegness,Buildings Maintenance - Programmed,12/04/12,IJ00008440,1581.07,DEVLIN DECORATORS LTD, 
East Lindsey District Council,http://statistics.data.gov.uk/id/local-authority/32UC,"Tower Gardens Toilets, Skegness",Buildings Maintenance - Programmed,12/04/12,IJ00008442,662.64,DEVLIN DECORATORS LTD, 
East Lindsey District Council,http://statistics.data.gov.uk/id/local-authority/32UC,Embassy underspends,Furniture and Equipment,12/04/12,IJ00008444,4739.22,DEVLIN DECORATORS LTD, 
East Lindsey District Council,http://statistics.data.gov.uk/id/local-authority/32UC,Business Development Officer,Advertising - Events,12/04/12,IJ00008457,594,DIRECT ENQUIRIES LTD, 
East Lindsey District Council,http://statistics.data.gov.uk/id/local-authority/32UC,"Car Park,(Lawrence St) Horncastle",Electricity,12/04/12,IJ00008452,7.79,E.ON ENERGY, 
East Lindsey District Council,http://statistics.data.gov.uk/id/local-authority/32UC,Car Park(Broadway) Woodhall Spa,Electricity,12/04/12,IJ00008452,6.07,E.ON ENERGY, 
East Lindsey District Council,http://statistics.data.gov.uk/id/local-authority/32UC,"Car Park,(Market Square) Alford",Electricity,12/04/12,IJ00008453,6.06,E.ON ENERGY, 
East Lindsey District Council,http://statistics.data.gov.uk/id/local-authority/32UC,"Car Park,Sth Market Place,Alford.",Electricity,12/04/12,IJ00008453,21.16,E.ON ENERGY, 
East Lindsey District Council,http://statistics.data.gov.uk/id/local-authority/32UC,Car Park(Post Office Lane) Spilsby,Electricity,12/04/12,IJ00008453,7.94,E.ON ENERGY, 
East Lindsey District Council,http://statistics.data.gov.uk/id/local-authority/32UC,"Car Park,(Well Vale) Chapel St Leonards",Electricity,12/04/12,IJ00008453,16.02,E.ON ENERGY, 
East Lindsey District Council,http://statistics.data.gov.uk/id/local-authority/32UC,Car Park(Scarborough Av)Skegness,Electricity,12/04/12,IJ00008453,26.32,E.ON ENERGY, 
East Lindsey District Council,http://statistics.data.gov.uk/id/local-authority/32UC,Car Park(Silver Street) Coningsby,Electricity,12/04/12,IJ00008453,19.38,E.ON ENERGY, 
East Lindsey District Council,http://statistics.data.gov.uk/id/local-authority/32UC,"Car Park,Market Place,Tattershall",Electricity,12/04/12,IJ00008453,13.14,E.ON ENERGY, 
East Lindsey District Council,http://statistics.data.gov.uk/id/local-authority/32UC,Rear Access Rear of Broadway Woodhall,Electricity,12/04/12,IJ00008452,12.14,E.ON ENERGY, 
East Lindsey District Council,http://statistics.data.gov.uk/id/local-authority/32UC,"Access Road & Bank,Nr Horn Playing Field",Electricity,12/04/12,IJ00008452,45.08,E.ON ENERGY, 
East Lindsey District Council,http://statistics.data.gov.uk/id/local-authority/32UC,Sherwood Field Sherwood Rd Mablethorpe,Electricity,12/04/12,IJ00008453,4.62,E.ON ENERGY, 
East Lindsey District Council,http://statistics.data.gov.uk/id/local-authority/32UC,Footway Lighting,Electricity,12/04/12,IJ00008452,536.48,E.ON ENERGY, 
East Lindsey District Council,http://statistics.data.gov.uk/id/local-authority/32UC,"Dambusters Memorial, Woodhall Spa",Electricity,12/04/12,IJ00008452,6.07,E.ON ENERGY, 
East Lindsey District Council,http://statistics.data.gov.uk/id/local-authority/32UC,Footway Lighting,Electricity,12/04/12,IJ00008453,2008.27,E.ON ENERGY, 
East Lindsey District Council,http://statistics.data.gov.uk/id/local-authority/32UC,Hcastle Industrial Dev-9 Workshops,Electricity,12/04/12,IJ00008452,12.14,E.ON ENERGY, 
East Lindsey District Council,http://statistics.data.gov.uk/id/local-authority/32UC,Theatre Manager,Performers and Entertainers Fees,12/04/12,IJ00008494,2250,ETM LIMITED, 
East Lindsey District Council,http://statistics.data.gov.uk/id/local-authority/32UC,Theatre Manager,Performers and Entertainers Fees,12/04/12,IJ00008495,3500,ETM LIMITED, 
East Lindsey District Council,http://statistics.data.gov.uk/id/local-authority/32UC,"Boating Lake, Skegness",Buildings Maintenance - Programmed,12/04/12,IJ00008436,600,G S PAUL, 
East Lindsey District Council,http://statistics.data.gov.uk/id/local-authority/32UC,Area 1,Maintenance,12/04/12,IJ00008417,1297.95,GREAT COATES MOTORS LTD, 
East Lindsey District Council,http://statistics.data.gov.uk/id/local-authority/32UC,East Lindsey Live,Advertising - Events,12/04/12,IJ00008403,4668.38,ICON DISPLAY LIMITED, 
East Lindsey District Council,http://statistics.data.gov.uk/id/local-authority/32UC,BM Planning & The Built Environment,Agency Staff,12/04/12,IJ00008410,5945.79,LGS LIMITED, 
East Lindsey District Council,http://statistics.data.gov.uk/id/local-authority/32UC,East Lindsey Millennium College,Interest payable and Similar Charges,12/04/12,IJ00008405,1950,LINCOLNSHIRE ECONOMIC ACTION PARTNERSHIP, 
East Lindsey District Council,http://statistics.data.gov.uk/id/local-authority/32UC,Corporate Management,Subscriptions to Organisations and Other Bodies,12/04/12,IJ00008418,10725,LOCAL GOVERNMENT ASSOCIATION, 
East Lindsey District Council,http://statistics.data.gov.uk/id/local-authority/32UC,"Mablethorpe TIC, Louth Hotel, M'thorpe",Payments to Bodies in Respect of Income Collected,12/04/12,IJ00008402,1255.21,NATIONAL EXPRESS CREDIT CONTROL DEPT, 
East Lindsey District Council,http://statistics.data.gov.uk/id/local-authority/32UC,"Tourist Info Centre, Horncastle",Payments to Bodies in Respect of Income Collected,12/04/12,IJ00008402,441.65,NATIONAL EXPRESS CREDIT CONTROL DEPT, 
East Lindsey District Council,http://statistics.data.gov.uk/id/local-authority/32UC,"Tourist Info Centre, Louth",Payments to Bodies in Respect of Income Collected,12/04/12,IJ00008402,1982.23,NATIONAL EXPRESS CREDIT CONTROL DEPT, 
East Lindsey District Council,http://statistics.data.gov.uk/id/local-authority/32UC,Coningsby/Tattershall Com Access,Payments to Bodies in Respect of Income Collected,12/04/12,IJ00008402,318,NATIONAL EXPRESS CREDIT CONTROL DEPT, 
East Lindsey District Council,http://statistics.data.gov.uk/id/local-authority/32UC,Housing Support - Young People,Rent and Lease Payments,12/04/12,IJ00008421,966.84,NEW LINX HOUSING TRUST, 
East Lindsey District Council,http://statistics.data.gov.uk/id/local-authority/32UC,Theatre Manager,Performers and Entertainers Fees,12/04/12,IJ00008493,1500,ORIGINAL ENTERTAINMENT PROGRAMMING LTD, 
East Lindsey District Council,http://statistics.data.gov.uk/id/local-authority/32UC,Annual General Provision for Flood Works,Works to Buildings (main Contractor),12/04/12,IJ00008408,6980,PELL PLANT HIRE LTD, 
East Lindsey District Council,http://statistics.data.gov.uk/id/local-authority/32UC,Caravan Park(Kingfisher) Ingoldmells,Clothing Uniforms And Laundry,12/04/12,IJ00008474,1270.9,PHS LAUNDRYSERV, 
East Lindsey District Council,http://statistics.data.gov.uk/id/local-authority/32UC,Members Expenses General,Grants and Contributions to Outside Bodies- No Service Recei,12/04/12,IJ00008419,800,SIBSEY COMMUNITY DEVELOPMENT GROUP, 
East Lindsey District Council,http://statistics.data.gov.uk/id/local-authority/32UC,Public Health (Infectious Diseases) Reg,Professional & Contractors Fees,12/04/12,IJ00008427,1107,SKEGNESS & DISTRICT FUNERAL SERVICES, 
East Lindsey District Council,http://statistics.data.gov.uk/id/local-authority/32UC,Public Health (Infectious Diseases) Reg,Professional & Contractors Fees,12/04/12,IJ00008428,960,SKEGNESS & DISTRICT FUNERAL SERVICES, 
East Lindsey District Council,http://statistics.data.gov.uk/id/local-authority/32UC,Members Expenses General,Grants and Contributions to Outside Bodies- No Service Recei,12/04/12,IJ00008420,800,SKEGNESS TOWN COUNCIL, 
East Lindsey District Council,http://statistics.data.gov.uk/id/local-authority/32UC,Salaries Control Accounts,Payroll Sacrifice Nursery Voucher,12/04/12,IJ00008459,2377,SODEXHO, 
East Lindsey District Council,http://statistics.data.gov.uk/id/local-authority/32UC,Fairfield Enterprise Centre,Cleaning Contract,12/04/12,IJ00008472,736.56,SPIRE CLEANING SERVICES, 
East Lindsey District Council,http://statistics.data.gov.uk/id/local-authority/32UC,Meridian Leisure Centre,Purchase Of Goods For Resale,12/04/12,IJ00008425,535.21,SRS LEISURE, 
East Lindsey District Council,http://statistics.data.gov.uk/id/local-authority/32UC,Car Parks General,Clothing Uniforms And Laundry,12/04/12,IJ00008466,88.52,THE ARCO GROUP, 
East Lindsey District Council,http://statistics.data.gov.uk/id/local-authority/32UC,Dog Warden,Clothing Uniforms And Laundry,12/04/12,IJ00008466,35.9,THE ARCO GROUP, 
East Lindsey District Council,http://statistics.data.gov.uk/id/local-authority/32UC,Emergency Planning,Furniture and Equipment,12/04/12,IJ00008466,58.5,THE ARCO GROUP, 
East Lindsey District Council,http://statistics.data.gov.uk/id/local-authority/32UC,Closed Circuit Television,Clothing Uniforms And Laundry,12/04/12,IJ00008466,18.28,THE ARCO GROUP, 
East Lindsey District Council,http://statistics.data.gov.uk/id/local-authority/32UC,Street Scene Improvement & Development,Clothing Uniforms And Laundry,12/04/12,IJ00008466,1040.24,THE ARCO GROUP, 
East Lindsey District Council,http://statistics.data.gov.uk/id/local-authority/32UC,Other Cleaning,Materials and Consumables,12/04/12,IJ00008466,101.92,THE ARCO GROUP, 
East Lindsey District Council,http://statistics.data.gov.uk/id/local-authority/32UC,Sports Development,Clothing Uniforms And Laundry,12/04/12,IJ00008466,92.88,THE ARCO GROUP, 
East Lindsey District Council,http://statistics.data.gov.uk/id/local-authority/32UC,Waste Services Manager,Materials and Consumables,12/04/12,IJ00008466,148.6,THE ARCO GROUP, 
East Lindsey District Council,http://statistics.data.gov.uk/id/local-authority/32UC,Housing Support - South Kesteven,Rent and Lease Payments,12/04/12,IJ00008423,937.5,TOTEMIC LTD, 
East Lindsey District Council,http://statistics.data.gov.uk/id/local-authority/32UC,Theatre Manager,Furniture and Equipment,12/04/12,IJ00008491,1298.78,TUSK SHOWHIRE, 
East Lindsey District Council,http://statistics.data.gov.uk/id/local-authority/32UC,Taxation and Non-Specific Grants,Non -Ringfenced Government Grants - RSG,16/04/12,IJ00008497,-33855,DEPARTMENT FOR COMMUNITIES AND LOCAL, 
East Lindsey District Council,http://statistics.data.gov.uk/id/local-authority/32UC,Taxation and Non-Specific Grants,Non Domestic Rates,16/04/12,IJ00008497,-431384,DEPARTMENT FOR COMMUNITIES AND LOCAL, 
East Lindsey District Council,http://statistics.data.gov.uk/id/local-authority/32UC,Business Rates Payments to Pool,Payment to NNDR Pool,16/04/12,IJ00008497,1097506,DEPARTMENT FOR COMMUNITIES AND LOCAL, 
East Lindsey District Council,http://statistics.data.gov.uk/id/local-authority/32UC,Theatre Manager,Performers and Entertainers Fees,16/04/12,IJ00008499,8400,MARK LUNDQUIST MANAGEMENT, 
East Lindsey District Council,http://statistics.data.gov.uk/id/local-authority/32UC,Donations,Grants and Contributions to Outside Bodies- No Service Recei,19/04/12,IJ00008586,600,1073 (SKEGNESS) SQUADRON ATC, 
East Lindsey District Council,http://statistics.data.gov.uk/id/local-authority/32UC,Corporate Management,Parish Council Precepts,19/04/12,IJ00008626,600,ABY WITH GREENFIELD PARISH COUNCIL, 
East Lindsey District Council,http://statistics.data.gov.uk/id/local-authority/32UC,Corporate Management,Parish Council Precepts,19/04/12,IJ00008627,4900,ADDLETHORPE PARISH COUNCIL, 
East Lindsey District Council,http://statistics.data.gov.uk/id/local-authority/32UC,Playing Fields(Memorial) Wainfleet Skeg,Professional & Contractors Fees,19/04/12,IJ00008545,2,ADIE O'REILLY LLP, 
East Lindsey District Council,http://statistics.data.gov.uk/id/local-authority/32UC,Playing Fields(Memorial) Wainfleet Skeg,Lincolnshire Legal Services,19/04/12,IJ00008545,500,ADIE O'REILLY LLP, 
East Lindsey District Council,http://statistics.data.gov.uk/id/local-authority/32UC,Foreshore Enhancements,Materials and Consumables,19/04/12,IJ00008563,1987.5,AHS LTD, 
East Lindsey District Council,http://statistics.data.gov.uk/id/local-authority/32UC,Corporate Management,Parish Council Precepts,19/04/12,IJ00008628,24706.5,ALFORD TOWN COUNCIL, 
East Lindsey District Council,http://statistics.data.gov.uk/id/local-authority/32UC,Corporate Management,Parish Council Precepts,19/04/12,IJ00008629,2200,ALVINGHAM PARISH COUNCIL, 
East Lindsey District Council,http://statistics.data.gov.uk/id/local-authority/32UC,Corporate Management,Parish Council Precepts,19/04/12,IJ00008630,3416.67,ANDERBY PARISH COUNCIL, 
East Lindsey District Council,http://statistics.data.gov.uk/id/local-authority/32UC,Meridian Leisure Centre,Water and Sewerage Charges,19/04/12,IJ00008683,4353.93,ANGLIAN WATER, 
East Lindsey District Council,http://statistics.data.gov.uk/id/local-authority/32UC,Corporate Management,Parish Council Precepts,19/04/12,IJ00008631,1187,ASTERBY GOULCEBY & RANBY PARISH COUNCIL, 
East Lindsey District Council,http://statistics.data.gov.uk/id/local-authority/32UC,Corporate Management,Parish Council Precepts,19/04/12,IJ00008633,600,BAUMBER PARISH COUNCIL, 
East Lindsey District Council,http://statistics.data.gov.uk/id/local-authority/32UC,Corporate Management,Parish Council Precepts,19/04/12,IJ00008636,2920,BELCHFORD & FULLETBY PARISH COUNCIL, 
East Lindsey District Council,http://statistics.data.gov.uk/id/local-authority/32UC,Corporate Management,Parish Council Precepts,19/04/12,IJ00008641,1200,BENNIWORTH PARISH COUNCIL, 
East Lindsey District Council,http://statistics.data.gov.uk/id/local-authority/32UC,Corporate Management,Parish Council Precepts,19/04/12,IJ00008642,2903,BILSBY & FARLESTHORPE PARISH COUNCIL, 
East Lindsey District Council,http://statistics.data.gov.uk/id/local-authority/32UC,Corporate Management,Parish Council Precepts,19/04/12,IJ00008643,6450,BINBROOK PARISH COUNCIL, 
East Lindsey District Council,http://statistics.data.gov.uk/id/local-authority/32UC,Corporate Management,Parish Council Precepts,19/04/12,IJ00008646,3800,BOLINGBROKE PARISH COUNCIL, 
East Lindsey District Council,http://statistics.data.gov.uk/id/local-authority/32UC,Building Control Partnership,Telephones,19/04/12,IJ00008515,3253.75,BT PLC, 
East Lindsey District Council,http://statistics.data.gov.uk/id/local-authority/32UC,Managed Workspace Golf Road Mablethorpe,Telephones,19/04/12,IJ00008516,748,BT PLC, 
East Lindsey District Council,http://statistics.data.gov.uk/id/local-authority/32UC,Skegness Managed Workspace,Telephones,19/04/12,IJ00008516,748,BT PLC, 
East Lindsey District Council,http://statistics.data.gov.uk/id/local-authority/32UC,Sports Centre Manager,Telephones,19/04/12,IJ00008516,748,BT PLC, 
East Lindsey District Council,http://statistics.data.gov.uk/id/local-authority/32UC,Corporate Management,Parish Council Precepts,19/04/12,IJ00008647,1500,BUCKNALL PARISH COUNCIL, 
East Lindsey District Council,http://statistics.data.gov.uk/id/local-authority/32UC,Corporate Management,Parish Council Precepts,19/04/12,IJ00008648,19434.06,BURGH LE MARSH TOWN COUNCIL, 
East Lindsey District Council,http://statistics.data.gov.uk/id/local-authority/32UC,Building Control Partnership,Telephones,19/04/12,IJ00008576,23.49,CABLE & WIRELESS WORLDWIDE, 
East Lindsey District Council,http://statistics.data.gov.uk/id/local-authority/32UC,TL IT - Network & Comms,Telephones,19/04/12,IJ00008576,23.49,CABLE & WIRELESS WORLDWIDE, 
East Lindsey District Council,http://statistics.data.gov.uk/id/local-authority/32UC,TL IT - Network & Comms,Telephones,19/04/12,IJ00008576,1518.25,CABLE & WIRELESS WORLDWIDE, 
East Lindsey District Council,http://statistics.data.gov.uk/id/local-authority/32UC,TL IT - Network & Comms,Telephones,19/04/12,IJ00008578,7790.17,CABLE & WIRELESS WORLDWIDE, 
East Lindsey District Council,http://statistics.data.gov.uk/id/local-authority/32UC,Capita Axis,Computer Software Licence Costs,19/04/12,IJ00008528,8314.34,CAPITA BUSINESS SERVICES LTD, 
East Lindsey District Council,http://statistics.data.gov.uk/id/local-authority/32UC,IT Manager,Furniture and Equipment,19/04/12,IJ00008519,915.2,CAPITAL BANK LEASING 12 LTD, 
East Lindsey District Council,http://statistics.data.gov.uk/id/local-authority/32UC,Inland Tourism Development,Other Miscellaneous Expenses,19/04/12,IJ00008760,1777.23,CARRIER DIRECT LIMITED, 
East Lindsey District Council,http://statistics.data.gov.uk/id/local-authority/32UC,Corporate Management,Parish Council Precepts,19/04/12,IJ00008650,7000,CARRINGTON PARISH COUNCIL, 
East Lindsey District Council,http://statistics.data.gov.uk/id/local-authority/32UC,Members Expenses General,Grants and Contributions to Outside Bodies- No Service Recei,19/04/12,IJ00008769,500,CHAPEL ST LEONARDS CARNIVAL CLUB, 
East Lindsey District Council,http://statistics.data.gov.uk/id/local-authority/32UC,Corporate Management,Parish Council Precepts,19/04/12,IJ00008651,37800,CHAPEL ST LEONARDS PARISH COUNCIL, 
East Lindsey District Council,http://statistics.data.gov.uk/id/local-authority/32UC,Flare,Computer Software Licence Costs,19/04/12,IJ00008531,4248.22,CIVICA FINANCIAL SYSTEMS LTD, 
East Lindsey District Council,http://statistics.data.gov.uk/id/local-authority/32UC,Waste Services Manager,Agency Staff,19/04/12,IJ00008561,2131.21,CLOSE INVOICE FINANCE LTD, 
East Lindsey District Council,http://statistics.data.gov.uk/id/local-authority/32UC,Foreshore Enhancements,Materials and Consumables,19/04/12,IJ00008550,1081,COLIN GREGORY ROSES LTD, 
East Lindsey District Council,http://statistics.data.gov.uk/id/local-authority/32UC,Embassy Pool Manager,Other agencies,19/04/12,IJ00008365,4995.74,COMPETITION LINE (UK) LTD, 
East Lindsey District Council,http://statistics.data.gov.uk/id/local-authority/32UC,Horncastle Pool Manager,Other agencies,19/04/12,IJ00008529,9695.65,COMPETITION LINE (UK) LTD, 
East Lindsey District Council,http://statistics.data.gov.uk/id/local-authority/32UC,Horncastle Pool Manager,Other agencies,19/04/12,IJ00008759,7452.17,COMPETITION LINE (UK) LTD, 
East Lindsey District Council,http://statistics.data.gov.uk/id/local-authority/32UC,Corporate Management,Parish Council Precepts,19/04/12,IJ00008653,25000,CONINGSBY TOWN COUNCIL, 
East Lindsey District Council,http://statistics.data.gov.uk/id/local-authority/32UC,Corporate Management,Parish Council Precepts,19/04/12,IJ00008821,2500,CONINGSBY TOWN COUNCIL, 
East Lindsey District Council,http://statistics.data.gov.uk/id/local-authority/32UC,Corporate Management,Parish Council Precepts,19/04/12,IJ00008658,3150,COVENHAM PARISH COUNCIL, 
East Lindsey District Council,http://statistics.data.gov.uk/id/local-authority/32UC,Corporate Management,Parish Council Precepts,19/04/12,IJ00008660,6500,CROFT PARISH COUNCIL, 
East Lindsey District Council,http://statistics.data.gov.uk/id/local-authority/32UC,Open Options (time & attendance),Computer Software Licence Costs,19/04/12,IJ00008521,553,CROWN COMPUTING LIMITED, 
East Lindsey District Council,http://statistics.data.gov.uk/id/local-authority/32UC,Open Options (time & attendance),Computer Software Licence Costs,19/04/12,IJ00008544,553,CROWN COMPUTING LIMITED, 
East Lindsey District Council,http://statistics.data.gov.uk/id/local-authority/32UC,Embassy Pool Manager,Purchase Of Goods For Resale,19/04/12,IJ00008617,785.67,DEE BEE, 
East Lindsey District Council,http://statistics.data.gov.uk/id/local-authority/32UC,Taxation and Non-Specific Grants,Non -Ringfenced Government Grants - RSG,19/04/12,IJ00008808,-33856,DEPARTMENT FOR COMMUNITIES AND LOCAL, 
East Lindsey District Council,http://statistics.data.gov.uk/id/local-authority/32UC,Taxation and Non-Specific Grants,Non Domestic Rates,19/04/12,IJ00008808,-431385,DEPARTMENT FOR COMMUNITIES AND LOCAL, 
East Lindsey District Council,http://statistics.data.gov.uk/id/local-authority/32UC,Business Rates Payments to Pool,Payment to NNDR Pool,19/04/12,IJ00008808,1097506,DEPARTMENT FOR COMMUNITIES AND LOCAL, 
East Lindsey District Council,http://statistics.data.gov.uk/id/local-authority/32UC,Arts Development - SO,Other Miscellaneous Expenses,19/04/12,IJ00008366,6858,DESIGN BY DISTRACTION, 
East Lindsey District Council,http://statistics.data.gov.uk/id/local-authority/32UC,Tower Gardens-Rutland Road Skeg,Buildings Maintenance - Programmed,19/04/12,IJ00008734,667.26,DEVLIN DECORATORS LTD, 
East Lindsey District Council,http://statistics.data.gov.uk/id/local-authority/32UC,Corporate Management,Parish Council Precepts,19/04/12,IJ00008663,5651,DONINGTON ON BAIN PARISH COUNCIL, 
East Lindsey District Council,http://statistics.data.gov.uk/id/local-authority/32UC,Corporate Management,Parish Council Precepts,19/04/12,IJ00008669,3590,EAST & WEST BARKWITH PARISH COUNCIL, 
East Lindsey District Council,http://statistics.data.gov.uk/id/local-authority/32UC,Corporate Management,Parish Council Precepts,19/04/12,IJ00008670,1300,EAST KEAL PARISH COUNCIL, 
East Lindsey District Council,http://statistics.data.gov.uk/id/local-authority/32UC,Corporate Management,Parish Council Precepts,19/04/12,IJ00008672,3000,EAST KIRKBY PARISH COUNCIL, 
East Lindsey District Council,http://statistics.data.gov.uk/id/local-authority/32UC,Improvement Programme Management,Staff Training Expenses,19/04/12,IJ00008579,604.8,EAST LINCS RURAL TRAINING, 
East Lindsey District Council,http://statistics.data.gov.uk/id/local-authority/32UC,Improvement Programme Management,Staff Training Expenses,19/04/12,IJ00008580,529.8,EAST LINCS RURAL TRAINING, 
East Lindsey District Council,http://statistics.data.gov.uk/id/local-authority/32UC,Improvement Programme Management,Staff Training Expenses,19/04/12,IJ00008580,559.8,EAST LINCS RURAL TRAINING, 
East Lindsey District Council,http://statistics.data.gov.uk/id/local-authority/32UC,Improvement Programme Management,Staff Training Expenses,19/04/12,IJ00008588,858,EAST LINCS RURAL TRAINING, 
East Lindsey District Council,http://statistics.data.gov.uk/id/local-authority/32UC,Corporate Management,Parish Council Precepts,19/04/12,IJ00008673,6250,EASTVILLE MIDVILLE & NEW LEAKE PARISH C, 
East Lindsey District Council,http://statistics.data.gov.uk/id/local-authority/32UC,Corporate Management,Parish Council Precepts,19/04/12,IJ00008674,1650,ELKINGTON PARISH COUNCIL, 
East Lindsey District Council,http://statistics.data.gov.uk/id/local-authority/32UC,Meridian Leisure Centre,Buildings Maintenance - Programmed,19/04/12,IJ00008667,11283.02,ENER.G COMBINED POWER LTD, 
East Lindsey District Council,http://statistics.data.gov.uk/id/local-authority/32UC,Corporate Management,Parish Council Precepts,19/04/12,IJ00008675,3500,FIRSBY GROUP PARISH COUNCIL, 
East Lindsey District Council,http://statistics.data.gov.uk/id/local-authority/32UC,Embassy Pool Manager,Furniture and Equipment,19/04/12,IJ00008639,10747,FORGE LEISURE LTD, 
East Lindsey District Council,http://statistics.data.gov.uk/id/local-authority/32UC,Corporate Management,Parish Council Precepts,19/04/12,IJ00008677,4800,FOTHERBY PARISH COUNCIL, 
East Lindsey District Council,http://statistics.data.gov.uk/id/local-authority/32UC,Corporate Management,Parish Council Precepts,19/04/12,IJ00008679,8500,FRISKNEY PARISH COUNCIL, 
East Lindsey District Council,http://statistics.data.gov.uk/id/local-authority/32UC,Corporate Management,Parish Council Precepts,19/04/12,IJ00008680,2000,FRITHVILLE & WESTVILLE PARISH COUNCIL, 
East Lindsey District Council,http://statistics.data.gov.uk/id/local-authority/32UC,Corporate Management,Parish Council Precepts,19/04/12,IJ00008688,2770,FULSTOW PARISH COUNCIL, 
East Lindsey District Council,http://statistics.data.gov.uk/id/local-authority/32UC,Members Expenses General,Grants and Contributions to Outside Bodies- No Service Recei,19/04/12,IJ00008763,750,FULSTOW VILLAGE HALL, 
East Lindsey District Council,http://statistics.data.gov.uk/id/local-authority/32UC,Corporate Management,Parish Council Precepts,19/04/12,IJ00008689,700,GAYTON LE MARSH PARISH MEETING, 
East Lindsey District Council,http://statistics.data.gov.uk/id/local-authority/32UC,Corporate Level Resources,Other Miscellaneous Expenses,19/04/12,IJ00008796,28023.82,GE CORPORATE PAYMENT SERVICES, 
East Lindsey District Council,http://statistics.data.gov.uk/id/local-authority/32UC,Leisure Management,Computer Software Licence Costs,19/04/12,IJ00008522,19295.5,GLADSTONE MRM LIMITED, 
East Lindsey District Council,http://statistics.data.gov.uk/id/local-authority/32UC,Waste Services Manager,Other agencies,19/04/12,IJ00008506,843.46,GLASS RECYCLING (UK) LTD, 
East Lindsey District Council,http://statistics.data.gov.uk/id/local-authority/32UC,Corporate Management,Parish Council Precepts,19/04/12,IJ00008690,2832,GRAINTHORPE PARISH COUNCIL, 
East Lindsey District Council,http://statistics.data.gov.uk/id/local-authority/32UC,Corporate Management,Parish Council Precepts,19/04/12,IJ00008691,1000,GREAT & LITTLE CARLTON PARISH COUNCIL, 
East Lindsey District Council,http://statistics.data.gov.uk/id/local-authority/32UC,Corporate Management,Parish Council Precepts,19/04/12,IJ00008692,9270,GRIMOLDBY & MANBY PARISH COUNCIL, 
East Lindsey District Council,http://statistics.data.gov.uk/id/local-authority/32UC,Meridian Leisure Centre,Other Miscellaneous Expenses,19/04/12,IJ00008569,27,GRS SIGN CO LTD, 
East Lindsey District Council,http://statistics.data.gov.uk/id/local-authority/32UC,Fairfield Enterprise Centre,Other Miscellaneous Expenses,19/04/12,IJ00008569,40,GRS SIGN CO LTD, 
East Lindsey District Council,http://statistics.data.gov.uk/id/local-authority/32UC,"Lawn Car Park Toilets, Skegness",Materials and Consumables,19/04/12,IJ00008569,412.83,GRS SIGN CO LTD, 
East Lindsey District Council,http://statistics.data.gov.uk/id/local-authority/32UC,"Lumley Square Toilets, Skegness",Materials and Consumables,19/04/12,IJ00008569,370.78,GRS SIGN CO LTD, 
East Lindsey District Council,http://statistics.data.gov.uk/id/local-authority/32UC,"Tower Gardens Toilets, Skegness",Materials and Consumables,19/04/12,IJ00008569,174.68,GRS SIGN CO LTD, 
East Lindsey District Council,http://statistics.data.gov.uk/id/local-authority/32UC,"Public Conveniences,Nth End,Fest C/P,Skg",Materials and Consumables,19/04/12,IJ00008569,285.2,GRS SIGN CO LTD, 
East Lindsey District Council,http://statistics.data.gov.uk/id/local-authority/32UC,"Boating Lake, Skegness",Buildings Maintenance - Programmed,19/04/12,IJ00008569,4789.99,GRS SIGN CO LTD, 
East Lindsey District Council,http://statistics.data.gov.uk/id/local-authority/32UC,Mablethorpe Beach Chalets,Works to Buildings (main Contractor),19/04/12,IJ00008678,10400,GUDRUM CLASSICS LIMITED, 
East Lindsey District Council,http://statistics.data.gov.uk/id/local-authority/32UC,Corporate Management,Parish Council Precepts,19/04/12,IJ00008693,4498,HAGWORTHINGHAM PARISH COUNCIL, 
East Lindsey District Council,http://statistics.data.gov.uk/id/local-authority/32UC,Corporate Management,Parish Council Precepts,19/04/12,IJ00008694,3010,HALTON HOLEGATE PARISH COUNCIL, 
East Lindsey District Council,http://statistics.data.gov.uk/id/local-authority/32UC,Corporate Management,Parish Council Precepts,19/04/12,IJ00008695,1600,HEMINGBY PARISH COUNCIL, 
East Lindsey District Council,http://statistics.data.gov.uk/id/local-authority/32UC,Corporate Management,Parish Council Precepts,19/04/12,IJ00008696,6000,HOGSTHORPE PARISH COUNCIL, 
East Lindsey District Council,http://statistics.data.gov.uk/id/local-authority/32UC,Corporate Management,Parish Council Precepts,19/04/12,IJ00008697,25000,HOLTON LE CLAY PARISH COUNCIL, 
East Lindsey District Council,http://statistics.data.gov.uk/id/local-authority/32UC,Corporate Management,Parish Council Precepts,19/04/12,IJ00008698,55725,HORNCASTLE TOWN COUNCIL, 
East Lindsey District Council,http://statistics.data.gov.uk/id/local-authority/32UC,Corporate Management,Parish Council Precepts,19/04/12,IJ00008699,1800,HORSINGTON PARISH COUNCIL, 
East Lindsey District Council,http://statistics.data.gov.uk/id/local-authority/32UC,Theatre Manager,Performers and Entertainers Fees,19/04/12,IJ00008616,1187.19,HOUSEFULL PRODUCTIONS LTD, 
East Lindsey District Council,http://statistics.data.gov.uk/id/local-authority/32UC,Theatre Manager,Performers and Entertainers Fees,19/04/12,IJ00008616,-461.67,HOUSEFULL PRODUCTIONS LTD, 
East Lindsey District Council,http://statistics.data.gov.uk/id/local-authority/32UC,Community Environmental Initiatives,Grants and Contributions to Outside Bodies- No Service Recei,19/04/12,IJ00008599,1061,HUMBER MANAGEMENT SCHEME, 
East Lindsey District Council,http://statistics.data.gov.uk/id/local-authority/32UC,Corporate Management,Parish Council Precepts,19/04/12,IJ00008700,2100,HUNDLEBY PARISH COUNCIL, 
East Lindsey District Council,http://statistics.data.gov.uk/id/local-authority/32UC,Corporate Management,Parish Council Precepts,19/04/12,IJ00008701,4900,HUTTOFT PARISH COUNCIL, 
East Lindsey District Council,http://statistics.data.gov.uk/id/local-authority/32UC,COPPT,Computer Software Licence Costs,19/04/12,IJ00008532,5444.22,IMPERIAL CIVIL ENFORCEMENT SOLUTIONS LTD, 
East Lindsey District Council,http://statistics.data.gov.uk/id/local-authority/32UC,Corporate Management,Parish Council Precepts,19/04/12,IJ00008702,8360,INGOLDMELLS PARISH COUNCIL, 
East Lindsey District Council,http://statistics.data.gov.uk/id/local-authority/32UC,Car Parks General,Other Miscellaneous Expenses,19/04/12,IJ00008730,3040,KENMOR BUILDING & CONSTRUCTION SERVICES, 
East Lindsey District Council,http://statistics.data.gov.uk/id/local-authority/32UC,"Car Park, Pier Sites, Skegness",Buildings Maintenance - Responsive,19/04/12,IJ00008730,547.5,KENMOR BUILDING & CONSTRUCTION SERVICES, 
East Lindsey District Council,http://statistics.data.gov.uk/id/local-authority/32UC,Car Park(Kingfisher)Ingoldmells,Buildings Maintenance - Programmed,19/04/12,IJ00008730,551.63,KENMOR BUILDING & CONSTRUCTION SERVICES, 
East Lindsey District Council,http://statistics.data.gov.uk/id/local-authority/32UC,Capital Maintenance,Works to Buildings (main Contractor),19/04/12,IJ00008730,13688.17,KENMOR BUILDING & CONSTRUCTION SERVICES, 
East Lindsey District Council,http://statistics.data.gov.uk/id/local-authority/32UC,Foreshore Enhancements,Buildings Maintenance - Programmed,19/04/12,IJ00008730,290.22,KENMOR BUILDING & CONSTRUCTION SERVICES, 
East Lindsey District Council,http://statistics.data.gov.uk/id/local-authority/32UC,Foreshore Enhancements,Buildings Maintenance - Programmed,19/04/12,IJ00008730,659.64,KENMOR BUILDING & CONSTRUCTION SERVICES, 
East Lindsey District Council,http://statistics.data.gov.uk/id/local-authority/32UC,Foreshore Enhancements,Buildings Maintenance - Programmed,19/04/12,IJ00008730,2145.75,KENMOR BUILDING & CONSTRUCTION SERVICES, 
East Lindsey District Council,http://statistics.data.gov.uk/id/local-authority/32UC,Foreshore Enhancements,Buildings Maintenance - Programmed,19/04/12,IJ00008730,2227.6,KENMOR BUILDING & CONSTRUCTION SERVICES, 
East Lindsey District Council,http://statistics.data.gov.uk/id/local-authority/32UC,Foreshore Enhancements,Buildings Maintenance - Programmed,19/04/12,IJ00008730,188.84,KENMOR BUILDING & CONSTRUCTION SERVICES, 
East Lindsey District Council,http://statistics.data.gov.uk/id/local-authority/32UC,"Gardens, (Compass)Skegness",Buildings Maintenance - Responsive,19/04/12,IJ00008730,240.72,KENMOR BUILDING & CONSTRUCTION SERVICES, 
East Lindsey District Council,http://statistics.data.gov.uk/id/local-authority/32UC,Gardens Northern Boating Lake Skegness,Buildings Maintenance - Responsive,19/04/12,IJ00008730,1050.15,KENMOR BUILDING & CONSTRUCTION SERVICES, 
East Lindsey District Council,http://statistics.data.gov.uk/id/local-authority/32UC,"Gardens,(North Parade-Rose) Skegness",Buildings Maintenance - Responsive,19/04/12,IJ00008730,467.68,KENMOR BUILDING & CONSTRUCTION SERVICES, 
East Lindsey District Council,http://statistics.data.gov.uk/id/local-authority/32UC,"Tower Esplanade,Sth Bracing,Skegness",Buildings Maintenance - Responsive,19/04/12,IJ00008730,730,KENMOR BUILDING & CONSTRUCTION SERVICES, 
East Lindsey District Council,http://statistics.data.gov.uk/id/local-authority/32UC,Beach Chalets 78-134 Queens Pk Prom Mab,Buildings Maintenance - Responsive,19/04/12,IJ00008730,213.35,KENMOR BUILDING & CONSTRUCTION SERVICES, 
East Lindsey District Council,http://statistics.data.gov.uk/id/local-authority/32UC,Tower Gardens-Rutland Road Skeg,Buildings Maintenance - Responsive,19/04/12,IJ00008730,373.98,KENMOR BUILDING & CONSTRUCTION SERVICES, 
East Lindsey District Council,http://statistics.data.gov.uk/id/local-authority/32UC,"Kiddies Corner, Skegness",Buildings Maintenance - Responsive,19/04/12,IJ00008730,349.04,KENMOR BUILDING & CONSTRUCTION SERVICES, 
East Lindsey District Council,http://statistics.data.gov.uk/id/local-authority/32UC,Corporate Management,Subscriptions to Organisations and Other Bodies,19/04/12,IJ00008369,1021.67,KENWICK PARK HOTEL LIMITED, 
East Lindsey District Council,http://statistics.data.gov.uk/id/local-authority/32UC,Corporate Management,Parish Council Precepts,19/04/12,IJ00008703,3000,KIRKBY ON BAIN PARISH COUNCIL, 
East Lindsey District Council,http://statistics.data.gov.uk/id/local-authority/32UC,Communications Manager,Film and Entertainment Costs,19/04/12,IJ00008644,594,L PETERSEN, 
East Lindsey District Council,http://statistics.data.gov.uk/id/local-authority/32UC,Corporate Management,Parish Council Precepts,19/04/12,IJ00008704,2700,LANGRIVILLE PARISH COUNCIL, 
East Lindsey District Council,http://statistics.data.gov.uk/id/local-authority/32UC,Public,VAT Customs and Excise,19/04/12,IJ00008762,8524.97,Langwith Builders Ltd, 
East Lindsey District Council,http://statistics.data.gov.uk/id/local-authority/32UC,Corporate Management,Parish Council Precepts,19/04/12,IJ00008705,4400,LEGBOURNE PARISH COUNCIL, 
East Lindsey District Council,http://statistics.data.gov.uk/id/local-authority/32UC,Lincolnshire Coastal Grazing Marshes,Other Miscellaneous Expenses,19/04/12,IJ00008507,900,LINCOLNSHIRE WILDLIFE TRUST, 
East Lindsey District Council,http://statistics.data.gov.uk/id/local-authority/32UC,Lincolnshire Coastal Grazing Marshes,Other Miscellaneous Expenses,19/04/12,IJ00008507,179.99,LINCOLNSHIRE WILDLIFE TRUST, 
East Lindsey District Council,http://statistics.data.gov.uk/id/local-authority/32UC,Lincolnshire Coastal Grazing Marshes,Other Miscellaneous Expenses,19/04/12,IJ00008507,-500,LINCOLNSHIRE WILDLIFE TRUST, 
East Lindsey District Council,http://statistics.data.gov.uk/id/local-authority/32UC,Corporate Management,Parish Council Precepts,19/04/12,IJ00008706,2400,LITTLE CAWTHORPE PARISH COUNCIL, 
East Lindsey District Council,http://statistics.data.gov.uk/id/local-authority/32UC,Theatre Manager,Performers and Entertainers Fees,19/04/12,IJ00008813,13750,LIZ HOBBS GROUP LIMITED, 
East Lindsey District Council,http://statistics.data.gov.uk/id/local-authority/32UC,Grounds Maintenance Contract No.2,Materials and Consumables,19/04/12,IJ00008733,8487,LOGIC STREET & PARK FURNITURE, 
East Lindsey District Council,http://statistics.data.gov.uk/id/local-authority/32UC,Markets General,Furniture and Equipment,19/04/12,IJ00008587,1333.33,LOUTH INTERSKILL LTD, 
East Lindsey District Council,http://statistics.data.gov.uk/id/local-authority/32UC,Corporate Management,Parish Council Precepts,19/04/12,IJ00008707,100055,LOUTH TOWN COUNCIL, 
East Lindsey District Council,http://statistics.data.gov.uk/id/local-authority/32UC,Corporate Management,Parish Council Precepts,19/04/12,IJ00008708,2000,LUDBOROUGH PARISH COUNCIL, 
East Lindsey District Council,http://statistics.data.gov.uk/id/local-authority/32UC,Corporate Management,Parish Council Precepts,19/04/12,IJ00008709,3700,LUDFORD PARISH COUNCIL, 
East Lindsey District Council,http://statistics.data.gov.uk/id/local-authority/32UC,Corporate Management,Parish Council Precepts,19/04/12,IJ00008710,76677,MABLETHORPE & SUTTON TOWN COUNCIL, 
East Lindsey District Council,http://statistics.data.gov.uk/id/local-authority/32UC,Corporate Management,Parish Council Precepts,19/04/12,IJ00008711,2650,MALTBY LE MARSH PARISH COUNCIL, 
East Lindsey District Council,http://statistics.data.gov.uk/id/local-authority/32UC,Corporate Management,Parish Council Precepts,19/04/12,IJ00008712,9500,MAREHAM LE FEN PARISH COUNCIL, 
East Lindsey District Council,http://statistics.data.gov.uk/id/local-authority/32UC,Corporate Management,Parish Council Precepts,19/04/12,IJ00008713,5225,MARSHCHAPEL PARISH COUNCIL, 
East Lindsey District Council,http://statistics.data.gov.uk/id/local-authority/32UC,Embassy underspends,Furniture and Equipment,19/04/12,IJ00008554,7500,MCFARLAND ENGINEERING, 
East Lindsey District Council,http://statistics.data.gov.uk/id/local-authority/32UC,Delphi Payroll,Computer Software Licence Costs,19/04/12,IJ00008514,1712.06,MIDLAND SOFTWARE LIMITED, 
East Lindsey District Council,http://statistics.data.gov.uk/id/local-authority/32UC,Delphi Personnel,Computer Software Licence Costs,19/04/12,IJ00008514,1643.61,MIDLAND SOFTWARE LIMITED, 
East Lindsey District Council,http://statistics.data.gov.uk/id/local-authority/32UC,Corporate Management,Parish Council Precepts,19/04/12,IJ00008715,4700,MINTING & GAUTBY PARISH COUNCIL, 
East Lindsey District Council,http://statistics.data.gov.uk/id/local-authority/32UC,Lincolnshire Coastal Grazing Marshes,Other Miscellaneous Expenses,19/04/12,IJ00008508,2000,MORWENNA CATT, 
East Lindsey District Council,http://statistics.data.gov.uk/id/local-authority/32UC,I.T. for Members,Computer Hardware Purchase,19/04/12,IJ00008542,798,MULTIDATA (EUROPE), 
East Lindsey District Council,http://statistics.data.gov.uk/id/local-authority/32UC,Corporate Management,Parish Council Precepts,19/04/12,IJ00008716,4305,MUMBY PARISH COUNCIL, 
East Lindsey District Council,http://statistics.data.gov.uk/id/local-authority/32UC,Horncastle Market,Market Stall Fees,19/04/12,IJ00008757,636,NABMA, 
East Lindsey District Council,http://statistics.data.gov.uk/id/local-authority/32UC,Members Expenses General,Grants and Contributions to Outside Bodies- No Service Recei,19/04/12,IJ00008767,500,NATIONAL COASTWATCH MABLETHORPE, 
East Lindsey District Council,http://statistics.data.gov.uk/id/local-authority/32UC,Members Expenses General,Grants and Contributions to Outside Bodies- No Service Recei,19/04/12,IJ00008770,500,NEW HORIZONS, 
East Lindsey District Council,http://statistics.data.gov.uk/id/local-authority/32UC,Corporate Management,Parish Council Precepts,19/04/12,IJ00008718,3500,NORTH COTES PARISH COUNCIL, 
East Lindsey District Council,http://statistics.data.gov.uk/id/local-authority/32UC,Corporate Management,Parish Council Precepts,19/04/12,IJ00008719,11500,NORTH SOMERCOTES PARISH COUNCIL, 
East Lindsey District Council,http://statistics.data.gov.uk/id/local-authority/32UC,Other Cleaning,Maintenance,19/04/12,IJ00008551,1200,NORTH STAFFS IRRIGATION LTD, 
East Lindsey District Council,http://statistics.data.gov.uk/id/local-authority/32UC,Corporate Management,Parish Council Precepts,19/04/12,IJ00008720,8415,NORTH THORESBY PARISH COUNCIL, 
East Lindsey District Council,http://statistics.data.gov.uk/id/local-authority/32UC,Footway Lighting,Electricity,19/04/12,IJ00008684,4535.52,NPOWER LTD, 
East Lindsey District Council,http://statistics.data.gov.uk/id/local-authority/32UC,Corporate Management,Parish Council Precepts,19/04/12,IJ00008721,2000,ORBY PARISH COUNCIL, 
East Lindsey District Council,http://statistics.data.gov.uk/id/local-authority/32UC,ARC House,Computer Software Licence Costs,19/04/12,IJ00008524,6234.42,ORCHARD INFORMATION SYSTEMS LIMITED, 
East Lindsey District Council,http://statistics.data.gov.uk/id/local-authority/32UC,ARC House,Computer Software Licence Costs,19/04/12,IJ00008525,588.57,ORCHARD INFORMATION SYSTEMS LIMITED, 
East Lindsey District Council,http://statistics.data.gov.uk/id/local-authority/32UC,Corporate Management,Parish Council Precepts,19/04/12,IJ00008722,1670,PARTNEY & DALBY PARISH COUNCIL, 
East Lindsey District Council,http://statistics.data.gov.uk/id/local-authority/32UC,Post Code Address Software,Computer Software Licence Costs,19/04/12,IJ00008530,1186.28,QAS SYSTEMS LTD, 
East Lindsey District Council,http://statistics.data.gov.uk/id/local-authority/32UC,Theatre Manager,Performers and Entertainers Fees,19/04/12,IJ00008612,4938.09,QDOS ENTERTAINMENT (PRODUCTIONS) LTD, 
East Lindsey District Council,http://statistics.data.gov.uk/id/local-authority/32UC,"Tower Gardens Toilets, Skegness",Buildings Maintenance - Responsive,19/04/12,IJ00008740,777.03,RENTOKIL SPECIALIST HYGIENE, 
East Lindsey District Council,http://statistics.data.gov.uk/id/local-authority/32UC,Corporate Management,Parish Council Precepts,19/04/12,IJ00008723,2000,REVESBY PARISH COUNCIL, 
East Lindsey District Council,http://statistics.data.gov.uk/id/local-authority/32UC,Other Cleaning,Fuel & Oil,19/04/12,IJ00008573,7984.13,RONTEC WATFORD LTD, 
East Lindsey District Council,http://statistics.data.gov.uk/id/local-authority/32UC,Policy & Project Manager,Conference and Seminars,19/04/12,IJ00008613,745,ROSE REGENERATION LIMITED, 
East Lindsey District Council,http://statistics.data.gov.uk/id/local-authority/32UC,Corporate Management,Parish Council Precepts,19/04/12,IJ00008724,1500,ROUGHTON PARISH COUNCIL, 
East Lindsey District Council,http://statistics.data.gov.uk/id/local-authority/32UC,Corporate Management,Parish Council Precepts,19/04/12,IJ00008725,9000,SALTFLEETBY PARISH COUNCIL, 
East Lindsey District Council,http://statistics.data.gov.uk/id/local-authority/32UC,Corporate Management,Parish Council Precepts,19/04/12,IJ00008726,1100,SCAMBLESBY PARISH COUNCIL, 
East Lindsey District Council,http://statistics.data.gov.uk/id/local-authority/32UC,Corporate Management,Parish Council Precepts,19/04/12,IJ00008731,14420,SIBSEY PARISH COUNCIL, 
East Lindsey District Council,http://statistics.data.gov.uk/id/local-authority/32UC,Contaminated Land,Furniture and Equipment,19/04/12,IJ00008560,1729.8,SITE INVESTIGATION SERVICES, 
East Lindsey District Council,http://statistics.data.gov.uk/id/local-authority/32UC,Corporate Management,Parish Council Precepts,19/04/12,IJ00008772,115304.5,SKEGNESS TOWN COUNCIL, 
East Lindsey District Council,http://statistics.data.gov.uk/id/local-authority/32UC,Corporate Management,Parish Council Precepts,19/04/12,IJ00008774,5850,SKIDBROOKE CUM SALTFLEET HAVEN P.C., 
East Lindsey District Council,http://statistics.data.gov.uk/id/local-authority/32UC,Corporate Management,Parish Council Precepts,19/04/12,IJ00008775,1000,SOUTH COCKERINGTON PARISH COUNCIL, 
East Lindsey District Council,http://statistics.data.gov.uk/id/local-authority/32UC,Corporate Management,Parish Council Precepts,19/04/12,IJ00008777,2400,SOUTH SOMERCOTES PARISH COUNCIL, 
East Lindsey District Council,http://statistics.data.gov.uk/id/local-authority/32UC,Corporate Management,Parish Council Precepts,19/04/12,IJ00008780,600,SOUTH WILLINGHAM PARISH COUNCIL, 
East Lindsey District Council,http://statistics.data.gov.uk/id/local-authority/32UC,Meridian Leisure Centre,Gas,19/04/12,IJ00008686,8321.89,SOUTHERN ELECTRIC PLC, 
East Lindsey District Council,http://statistics.data.gov.uk/id/local-authority/32UC,Corporate Management,Parish Council Precepts,19/04/12,IJ00008782,22040,SPILSBY TOWN COUNCIL, 
East Lindsey District Council,http://statistics.data.gov.uk/id/local-authority/32UC,Corporate Management,Parish Council Precepts,19/04/12,IJ00008783,3264,STICKFORD PARISH COUNCIL, 
East Lindsey District Council,http://statistics.data.gov.uk/id/local-authority/32UC,Corporate Management,Parish Council Precepts,19/04/12,IJ00008785,8000,STICKNEY PARISH COUNCIL, 
East Lindsey District Council,http://statistics.data.gov.uk/id/local-authority/32UC,Corporate Management,Parish Council Precepts,19/04/12,IJ00008786,750,STRUBBY WITH WOODTHORPE PARISH MEETING, 
East Lindsey District Council,http://statistics.data.gov.uk/id/local-authority/32UC,Corporate Management,Parish Council Precepts,19/04/12,IJ00008788,1700,SWABY GROUP PARISH COUNCIL, 
East Lindsey District Council,http://statistics.data.gov.uk/id/local-authority/32UC,Corporate Management,Parish Council Precepts,19/04/12,IJ00008789,2000,TATHWELL & HAUGHAM PARISH COUNCIL, 
East Lindsey District Council,http://statistics.data.gov.uk/id/local-authority/32UC,Corporate Management,Parish Council Precepts,19/04/12,IJ00008790,7250,TATTERSHALL WITH THORPE PARISH COUNCIL, 
East Lindsey District Council,http://statistics.data.gov.uk/id/local-authority/32UC,Corporate Management,Parish Council Precepts,19/04/12,IJ00008791,4500,TETFORD PARISH COUNCIL, 
East Lindsey District Council,http://statistics.data.gov.uk/id/local-authority/32UC,Corporate Management,Parish Council Precepts,19/04/12,IJ00008794,7500,TETNEY PARISH COUNCIL, 
East Lindsey District Council,http://statistics.data.gov.uk/id/local-authority/32UC,General Elections,Other Revenue Grants Reimbursements & Contributions (Govt),19/04/12,IJ00008755,3456.28,THE ELECTORAL COMMISSION, 
East Lindsey District Council,http://statistics.data.gov.uk/id/local-authority/32UC,Other Cleaning,Agency Staff,19/04/12,IJ00008511,1656.2,THE WORKSHOP (WISBECH) LIMITED, 
East Lindsey District Council,http://statistics.data.gov.uk/id/local-authority/32UC,Corporate Management,Parish Council Precepts,19/04/12,IJ00008797,7250,THEDDLETHORPE PARISH COUNCIL, 
East Lindsey District Council,http://statistics.data.gov.uk/id/local-authority/32UC,Corporate Management,Parish Council Precepts,19/04/12,IJ00008798,2100,THIMBLEBY PARISH COUNCIL, 
East Lindsey District Council,http://statistics.data.gov.uk/id/local-authority/32UC,Corporate Management,Parish Council Precepts,19/04/12,IJ00008799,1900,THORNTON LE FEN PARISH COUNCIL, 
East Lindsey District Council,http://statistics.data.gov.uk/id/local-authority/32UC,Corporate Management,Parish Council Precepts,19/04/12,IJ00008801,1400,THORPE ST PETER PARISH COUNCIL, 
East Lindsey District Council,http://statistics.data.gov.uk/id/local-authority/32UC,Tower Gardens-Rutland Road Skeg,Buildings Maintenance - Programmed,19/04/12,IJ00008665,695,TOPDRIVE LTD, 
East Lindsey District Council,http://statistics.data.gov.uk/id/local-authority/32UC,Corporate Management,Parish Council Precepts,19/04/12,IJ00008803,2000,TOYNTON ALL SAINTS PARISH COUNCIL, 
East Lindsey District Council,http://statistics.data.gov.uk/id/local-authority/32UC,Corporate Management,Parish Council Precepts,19/04/12,IJ00008804,1800,TOYNTON ST PETER PARISH COUNCIL, 
East Lindsey District Council,http://statistics.data.gov.uk/id/local-authority/32UC,Waste Depot Facility,VAT Customs and Excise,19/04/12,IJ00008501,1565.61,TRENT VALLEY CONSTRUCTION LTD, 
East Lindsey District Council,http://statistics.data.gov.uk/id/local-authority/32UC,Waste Depot Facility,Works to Buildings (main Contractor),19/04/12,IJ00008510,7828.03,TRENT VALLEY CONSTRUCTION LTD, 
East Lindsey District Council,http://statistics.data.gov.uk/id/local-authority/32UC,Corporate Management,Parish Council Precepts,19/04/12,IJ00008806,1000,TUMBY PARISH COUNCIL, 
East Lindsey District Council,http://statistics.data.gov.uk/id/local-authority/32UC,Corporate Management,Parish Council Precepts,19/04/12,IJ00008793,3630,UTTERBY PARISH COUNCIL, 
East Lindsey District Council,http://statistics.data.gov.uk/id/local-authority/32UC,Car Parks General,Other Miscellaneous Expenses,19/04/12,IJ00008743,3522.77,VERE BROS (CONTRACTORS) LTD, 
East Lindsey District Council,http://statistics.data.gov.uk/id/local-authority/32UC,Car Parks General,Other Miscellaneous Expenses,19/04/12,IJ00008744,2199.46,VERE BROS (CONTRACTORS) LTD, 
East Lindsey District Council,http://statistics.data.gov.uk/id/local-authority/32UC,Car Parks General,Other Miscellaneous Expenses,19/04/12,IJ00008745,7565.2,VERE BROS (CONTRACTORS) LTD, 
East Lindsey District Council,http://statistics.data.gov.uk/id/local-authority/32UC,Corporate Management,Parish Council Precepts,19/04/12,IJ00008809,11250,WAINFLEET ALL SAINTS TOWN COUNCIL, 
East Lindsey District Council,http://statistics.data.gov.uk/id/local-authority/32UC,Dog Warden,Professional & Contractors Fees,19/04/12,IJ00008547,960,WALKERS KENNELS, 
East Lindsey District Council,http://statistics.data.gov.uk/id/local-authority/32UC,HDP Phase 3,Grants and Contributions to Outside Bodies- No Service Recei,19/04/12,IJ00008787,254100,WATERLOO HOUSING GROUP LTD, 
East Lindsey District Council,http://statistics.data.gov.uk/id/local-authority/32UC,Waste Services Manager,Fuel & Oil,19/04/12,IJ00008564,14302.95,WATSON PETROLEUM LTD, 
East Lindsey District Council,http://statistics.data.gov.uk/id/local-authority/32UC,Other Cleaning,Professional & Contractors Fees,19/04/12,IJ00008607,4475,WELTON AGGREGATES LTD, 
East Lindsey District Council,http://statistics.data.gov.uk/id/local-authority/32UC,Corporate Management,Parish Council Precepts,19/04/12,IJ00008810,2500,WELTON LE MARSH PARISH COUNCIL, 
East Lindsey District Council,http://statistics.data.gov.uk/id/local-authority/32UC,Corporate Management,Parish Council Precepts,19/04/12,IJ00008812,570,WELTON LE WOLD PARISH MEETING, 
East Lindsey District Council,http://statistics.data.gov.uk/id/local-authority/32UC,Corporate Management,Parish Council Precepts,19/04/12,IJ00008814,1700,WEST ASHBY PARISH COUNCIL, 
East Lindsey District Council,http://statistics.data.gov.uk/id/local-authority/32UC,Corporate Management,Parish Council Precepts,19/04/12,IJ00008815,2598,WEST KEAL PARISH COUNCIL, 
East Lindsey District Council,http://statistics.data.gov.uk/id/local-authority/32UC,Corporate Management,Parish Council Precepts,19/04/12,IJ00008816,4500,WILDMORE PARISH COUNCIL, 
East Lindsey District Council,http://statistics.data.gov.uk/id/local-authority/32UC,Corporate Management,Parish Council Precepts,19/04/12,IJ00008817,6000,WILLOUGHBY & DISTRICT PARISH COUNCIL, 
East Lindsey District Council,http://statistics.data.gov.uk/id/local-authority/32UC,Corporate Management,Parish Council Precepts,19/04/12,IJ00008818,2000,WITHERN WITH STAIN PARISH COUNCIL, 
East Lindsey District Council,http://statistics.data.gov.uk/id/local-authority/32UC,Corporate Management,Parish Council Precepts,19/04/12,IJ00008819,23747.5,WOODHALL SPA PARISH COUNCIL, 
East Lindsey District Council,http://statistics.data.gov.uk/id/local-authority/32UC,Corporate Management,Parish Council Precepts,19/04/12,IJ00008820,11800,WRAGBY PARISH COUNCIL, 
East Lindsey District Council,http://statistics.data.gov.uk/id/local-authority/32UC,Partnerships,Grants and Contributions- Where a Service is Received,26/04/12,IJ00008876,520,A PERTON SIGNS LTD, 
East Lindsey District Council,http://statistics.data.gov.uk/id/local-authority/32UC,Business Development Officer,Grants and Contributions to Outside Bodies- No Service Recei,26/04/12,IJ00008983,8500,ALFORD SPORTS HALL, 
East Lindsey District Council,http://statistics.data.gov.uk/id/local-authority/32UC,Caravan Park(Kingfisher) Ingoldmells,Water and Sewerage Charges,26/04/12,IJ00009022,8073.5,ANGLIAN WATER, 
East Lindsey District Council,http://statistics.data.gov.uk/id/local-authority/32UC,Embassy Pool Manager,Water and Sewerage Charges,26/04/12,IJ00009015,1784.17,ANGLIAN WATER, 
East Lindsey District Council,http://statistics.data.gov.uk/id/local-authority/32UC,Leased Accommodation,Water and Sewerage Charges,26/04/12,IJ00008822,539.05,ANGLIAN WATER, 
East Lindsey District Council,http://statistics.data.gov.uk/id/local-authority/32UC,Leased Accommodation,Water and Sewerage Charges,26/04/12,IJ00008823,523.36,ANGLIAN WATER, 
East Lindsey District Council,http://statistics.data.gov.uk/id/local-authority/32UC,Meridian Leisure Centre,Water and Sewerage Charges,26/04/12,IJ00009019,852.27,ANGLIAN WATER, 
East Lindsey District Council,http://statistics.data.gov.uk/id/local-authority/32UC,Corporate Level Resources,External Audit Fees,26/04/12,IJ00008865,7866,AUDIT COMMISSION, 
East Lindsey District Council,http://statistics.data.gov.uk/id/local-authority/32UC,Hsg Advice & Homelessness TL,Bed and Breakfast Accommodation (Homelessness Service),26/04/12,IJ00008881,825,BEESTON LODGE HOTEL, 
East Lindsey District Council,http://statistics.data.gov.uk/id/local-authority/32UC,Noise Equipment,Furniture and Equipment,26/04/12,IJ00008886,545,CAMPBELL ASSOCIATES, 
East Lindsey District Council,http://statistics.data.gov.uk/id/local-authority/32UC,Corporate Level Resources,Insurance,26/04/12,IJ00009075,604.2,CHARTIS INSURANCE UK LIMITED, 
East Lindsey District Council,http://statistics.data.gov.uk/id/local-authority/32UC,Waste Services Manager,Agency Staff,26/04/12,IJ00009017,4540.39,CLOSE INVOICE FINANCE LTD, 
East Lindsey District Council,http://statistics.data.gov.uk/id/local-authority/32UC,Waste Services Manager,Agency Staff,26/04/12,IJ00008960,5222.2,CLOSE INVOICE FINANCE LTD, 
East Lindsey District Council,http://statistics.data.gov.uk/id/local-authority/32UC,Fairfield Enterprise Centre,Buildings Maintenance - Programmed,26/04/12,IJ00009064,600,CLYMAC LTD, 
East Lindsey District Council,http://statistics.data.gov.uk/id/local-authority/32UC,Hackney Carriages Licences,Other Employee Expenses,26/04/12,IJ00009104,590,CRIMINAL RECORDS BUREAU, 
East Lindsey District Council,http://statistics.data.gov.uk/id/local-authority/32UC,Horncastle Pool Manager,Agency Staff,26/04/12,IJ00009104,44,CRIMINAL RECORDS BUREAU, 
East Lindsey District Council,http://statistics.data.gov.uk/id/local-authority/32UC,Meridian Leisure Centre,Agency Staff,26/04/12,IJ00009104,220,CRIMINAL RECORDS BUREAU, 
East Lindsey District Council,http://statistics.data.gov.uk/id/local-authority/32UC,Hsg Advice & Homelessness TL,Bed and Breakfast Accommodation (Homelessness Service),26/04/12,IJ00009078,810,REDACTED PERSONAL INFORMATION,REDACT PERSONAL INFORMATION
East Lindsey District Council,http://statistics.data.gov.uk/id/local-authority/32UC,Meridian Leisure Centre,Other Miscellaneous Expenses,26/04/12,IJ00008963,958.94,DEE BEE, 
East Lindsey District Council,http://statistics.data.gov.uk/id/local-authority/32UC,Register of Electors,External Printing and Design Costs,26/04/12,IJ00008827,2387.28,DEMOCRACY COUNTS LIMITED, 
East Lindsey District Council,http://statistics.data.gov.uk/id/local-authority/32UC,Caravan Park(Kingfisher) Ingoldmells,Buildings Maintenance - Programmed,26/04/12,IJ00009049,670.52,DEVLIN DECORATORS LTD, 
East Lindsey District Council,http://statistics.data.gov.uk/id/local-authority/32UC,Foreshore Enhancements,Buildings Maintenance - Programmed,26/04/12,IJ00009051,957.6,DEVLIN DECORATORS LTD, 
East Lindsey District Council,http://statistics.data.gov.uk/id/local-authority/32UC,Communications Manager,Stationery,26/04/12,IJ00008954,17.2,ESPO, 
East Lindsey District Council,http://statistics.data.gov.uk/id/local-authority/32UC,Meridian Leisure Centre,Furniture and Equipment,26/04/12,IJ00008954,27,ESPO, 
East Lindsey District Council,http://statistics.data.gov.uk/id/local-authority/32UC,Meridian Leisure Centre,Materials and Consumables,26/04/12,IJ00008954,93.15,ESPO, 
East Lindsey District Council,http://statistics.data.gov.uk/id/local-authority/32UC,Other Cleaning,Materials and Consumables,26/04/12,IJ00008954,7.1,ESPO, 
East Lindsey District Council,http://statistics.data.gov.uk/id/local-authority/32UC,Other Cleaning,Materials and Consumables,26/04/12,IJ00008954,569.46,ESPO, 
East Lindsey District Council,http://statistics.data.gov.uk/id/local-authority/32UC,Cleansing,Materials and Consumables,26/04/12,IJ00008954,166.88,ESPO, 
East Lindsey District Council,http://statistics.data.gov.uk/id/local-authority/32UC,Sports Centre Manager,Cleaning Contract,26/04/12,IJ00008954,223.49,ESPO, 
East Lindsey District Council,http://statistics.data.gov.uk/id/local-authority/32UC,Big Lottery - Play Vehicle,Stationery,26/04/12,IJ00008954,16.32,ESPO, 
East Lindsey District Council,http://statistics.data.gov.uk/id/local-authority/32UC,Sports Centre Manager,Buildings Maintenance - Responsive,26/04/12,IJ00008978,2021.93,FRED MARGARSON LTD., 
East Lindsey District Council,http://statistics.data.gov.uk/id/local-authority/32UC,Salaries Control Accounts,Payroll-Gmbatu,26/04/12,IJ00008946,733.38,GMB NATIONAL ADMINISTRATION UNIT, 
East Lindsey District Council,http://statistics.data.gov.uk/id/local-authority/32UC,Foreshore Enhancements,Materials and Consumables,26/04/12,IJ00008866,960,GREENHILLS NURSERY LTD, 
East Lindsey District Council,http://statistics.data.gov.uk/id/local-authority/32UC,Foreshore Enhancements,Grounds Maintenance Contract (External),26/04/12,IJ00008866,75,GREENHILLS NURSERY LTD, 
East Lindsey District Council,http://statistics.data.gov.uk/id/local-authority/32UC,Footway Lighting,Buildings Maintenance - Responsive,26/04/12,IJ00009063,4719.63,HARLITE INSTALLATIONS LTD, 
East Lindsey District Council,http://statistics.data.gov.uk/id/local-authority/32UC,Car Park(Co-op) Louth,Payments to Bodies in Respect of Income Collected,26/04/12,IJ00009021,7500.08,INNES ENGLAND COMMERCIAL PROPERTY, 
East Lindsey District Council,http://statistics.data.gov.uk/id/local-authority/32UC,ELPH-Disabled Facilities Grant,Grants and Contributions to Outside Bodies- No Service Recei,26/04/12,IJ00008938,6611.96,J SIVILL LTD, 
East Lindsey District Council,http://statistics.data.gov.uk/id/local-authority/32UC,Imp.Grants,Other Revenue Grants Reimbursements & Contributions (Govt),26/04/12,IJ00008938,-590.35,J SIVILL LTD, 
East Lindsey District Council,http://statistics.data.gov.uk/id/local-authority/32UC,Street Naming,Buildings Maintenance - Responsive,26/04/12,IJ00009109,40.33,J TOMLINSON LTD, 
East Lindsey District Council,http://statistics.data.gov.uk/id/local-authority/32UC,Enabling Activities Housing Advice,Grants and Contributions to Outside Bodies- No Service Recei,26/04/12,IJ00009109,57.13,J TOMLINSON LTD, 
East Lindsey District Council,http://statistics.data.gov.uk/id/local-authority/32UC,Fairfield Enterprise Centre,Professional & Contractors Fees,26/04/12,IJ00009109,20.9,J TOMLINSON LTD, 
East Lindsey District Council,http://statistics.data.gov.uk/id/local-authority/32UC,Policy & Project Manager,Furniture and Equipment,26/04/12,IJ00009109,67.93,J TOMLINSON LTD, 
East Lindsey District Council,http://statistics.data.gov.uk/id/local-authority/32UC,Safe Homes Scheme,Grants and Contributions- Where a Service is Received,26/04/12,IJ00009109,945.83,J TOMLINSON LTD, 
East Lindsey District Council,http://statistics.data.gov.uk/id/local-authority/32UC,Other Cleaning,Materials and Consumables,26/04/12,IJ00009109,68.4,J TOMLINSON LTD, 
East Lindsey District Council,http://statistics.data.gov.uk/id/local-authority/32UC,"Eastgate Toilets, Louth",Materials and Consumables,26/04/12,IJ00009109,161.98,J TOMLINSON LTD, 
East Lindsey District Council,http://statistics.data.gov.uk/id/local-authority/32UC,Skegness Main Scheme Illuminations,Buildings Maintenance - Programmed,26/04/12,IJ00009109,41.8,J TOMLINSON LTD, 
East Lindsey District Council,http://statistics.data.gov.uk/id/local-authority/32UC,Waste Services Manager,Professional & Contractors Fees,26/04/12,IJ00009109,198.47,J TOMLINSON LTD, 
East Lindsey District Council,http://statistics.data.gov.uk/id/local-authority/32UC,Damage Bonds,Other Miscellaneous Expenses,26/04/12,IJ00008985,500,REDACTED PERSONAL INFORMATION,REDACT PERSONAL INFORMATION
East Lindsey District Council,http://statistics.data.gov.uk/id/local-authority/32UC,"Car Park (Festival) Off Tower Esplanade, Skegness",Buildings Maintenance - Responsive,26/04/12,IJ00009053,92.47,KENMOR BUILDING & CONSTRUCTION SERVICES, 
East Lindsey District Council,http://statistics.data.gov.uk/id/local-authority/32UC,"Car Park(Arcadia)Drummond Road, Skegness",Buildings Maintenance - Responsive,26/04/12,IJ00009053,509.86,KENMOR BUILDING & CONSTRUCTION SERVICES, 
East Lindsey District Council,http://statistics.data.gov.uk/id/local-authority/32UC,Amenity Area Vine Walk Skeg,Buildings Maintenance - Responsive,26/04/12,IJ00009053,291.97,KENMOR BUILDING & CONSTRUCTION SERVICES, 
East Lindsey District Council,http://statistics.data.gov.uk/id/local-authority/32UC,ELPH-Disabled Facilities Grant,Grants and Contributions to Outside Bodies- No Service Recei,26/04/12,IJ00008937,4292.6,KES BUILDING MAINTENANCE LTD, 
East Lindsey District Council,http://statistics.data.gov.uk/id/local-authority/32UC,Imp.Grants,Other Revenue Grants Reimbursements & Contributions (Govt),26/04/12,IJ00008937,-383.27,KES BUILDING MAINTENANCE LTD, 
East Lindsey District Council,http://statistics.data.gov.uk/id/local-authority/32UC,Houses in Multiple Occupation,Works to Buildings (main Contractor),26/04/12,IJ00008910,650,LANDCLEAR LIMITED, 
East Lindsey District Council,http://statistics.data.gov.uk/id/local-authority/32UC,Land Charges,Professional & Contractors Fees,26/04/12,IJ00008993,2500,LINCOLNSHIRE COUNTY COUNCIL, 
East Lindsey District Council,http://statistics.data.gov.uk/id/local-authority/32UC,Hsg Advice & Homelessness TL,Rent and Lease Payments,26/04/12,IJ00008848,672,LINCOLNSHIRE RURAL HOUSING ASSOCIATION, 
East Lindsey District Council,http://statistics.data.gov.uk/id/local-authority/32UC,Leased Accommodation,Rent and Lease Payments,26/04/12,IJ00008824,2413.68,LONGHURST HOMES, 
East Lindsey District Council,http://statistics.data.gov.uk/id/local-authority/32UC,Theatre Manager,Furniture and Equipment,26/04/12,IJ00008991,1162.7,MALCOLM TAIT, 
East Lindsey District Council,http://statistics.data.gov.uk/id/local-authority/32UC,Skeg F/Shore Bowling Greens Sth Parade,Buildings Maintenance - Responsive,26/04/12,IJ00009002,549.84,MARK ELDIN JOINERY, 
East Lindsey District Council,http://statistics.data.gov.uk/id/local-authority/32UC,Tower Gardens-Rutland Road Skeg,Buildings Maintenance - Responsive,26/04/12,IJ00009007,873.05,MARK ELDIN JOINERY, 
East Lindsey District Council,http://statistics.data.gov.uk/id/local-authority/32UC,Waste Services Manager,Commercial Vehicle Lease,26/04/12,IJ00009027,7200,MAY GURNEY FLEET & PASSENGER SERVICES LTD, 
East Lindsey District Council,http://statistics.data.gov.uk/id/local-authority/32UC,Embassy Theatre Bar,Other Miscellaneous Expenses,26/04/12,IJ00008990,722.56,MOLSON COORS BREWERS LTD, 
East Lindsey District Council,http://statistics.data.gov.uk/id/local-authority/32UC,Corporate Accounting,Other Miscellaneous Expenses,26/04/12,IJ00008888,623.94,NEOPOST LIMITED, 
East Lindsey District Council,http://statistics.data.gov.uk/id/local-authority/32UC,Leased Accommodation,Rent and Lease Payments,26/04/12,IJ00008851,1107.96,NEW LINX HOUSING TRUST, 
East Lindsey District Council,http://statistics.data.gov.uk/id/local-authority/32UC,Leased Accommodation,Rent and Lease Payments,26/04/12,IJ00008852,1107.96,NEW LINX HOUSING TRUST, 
East Lindsey District Council,http://statistics.data.gov.uk/id/local-authority/32UC,Leased Accommodation,Rent and Lease Payments,26/04/12,IJ00008853,1107.96,NEW LINX HOUSING TRUST, 
East Lindsey District Council,http://statistics.data.gov.uk/id/local-authority/32UC,Leased Accommodation,Rent and Lease Payments,26/04/12,IJ00008854,1072.44,NEW LINX HOUSING TRUST, 
East Lindsey District Council,http://statistics.data.gov.uk/id/local-authority/32UC,Leased Accommodation,Rent and Lease Payments,26/04/12,IJ00008855,1200.48,NEW LINX HOUSING TRUST, 
East Lindsey District Council,http://statistics.data.gov.uk/id/local-authority/32UC,Leased Accommodation,Rent and Lease Payments,26/04/12,IJ00008856,1126.92,NEW LINX HOUSING TRUST, 
East Lindsey District Council,http://statistics.data.gov.uk/id/local-authority/32UC,Leased Accommodation,Rent and Lease Payments,26/04/12,IJ00008857,1126.92,NEW LINX HOUSING TRUST, 
East Lindsey District Council,http://statistics.data.gov.uk/id/local-authority/32UC,Leased Accommodation,Rent and Lease Payments,26/04/12,IJ00008858,1040.52,NEW LINX HOUSING TRUST, 
East Lindsey District Council,http://statistics.data.gov.uk/id/local-authority/32UC,Hsg Advice & Homelessness TL,Rent and Lease Payments,26/04/12,IJ00008849,1018.8,NEW LINX HOUSING TRUST, 
East Lindsey District Council,http://statistics.data.gov.uk/id/local-authority/32UC,Hsg Advice & Homelessness TL,Rent and Lease Payments,26/04/12,IJ00008850,1107.96,NEW LINX HOUSING TRUST, 
East Lindsey District Council,http://statistics.data.gov.uk/id/local-authority/32UC,Homeless Person Crisis Payment,Grants and Contributions to Outside Bodies- No Service Recei,26/04/12,IJ00009024,650,NEW LINX HOUSING TRUST, 
East Lindsey District Council,http://statistics.data.gov.uk/id/local-authority/32UC,Corporate Management,Subscriptions to Organisations and Other Bodies,26/04/12,IJ00008837,2095,NORTH KESTEVEN DISTRICT COUNCIL, 
East Lindsey District Council,http://statistics.data.gov.uk/id/local-authority/32UC,Footway Lighting,Electricity,26/04/12,IJ00009001,54138.56,NPOWER LTD, 
East Lindsey District Council,http://statistics.data.gov.uk/id/local-authority/32UC,Footway Lighting,Electricity,26/04/12,IJ00009004,2642.99,NPOWER LTD, 
East Lindsey District Council,http://statistics.data.gov.uk/id/local-authority/32UC,Footway Lighting,Electricity,26/04/12,IJ00009006,1975.03,NPOWER LTD, 
East Lindsey District Council,http://statistics.data.gov.uk/id/local-authority/32UC,Footway Lighting,Electricity,26/04/12,IJ00009006,623.74,NPOWER LTD, 
East Lindsey District Council,http://statistics.data.gov.uk/id/local-authority/32UC,Footway Lighting,Electricity,26/04/12,IJ00009069,1271.09,NPOWER LTD, 
East Lindsey District Council,http://statistics.data.gov.uk/id/local-authority/32UC,Footway Lighting,Electricity,26/04/12,IJ00009071,2504.03,NPOWER LTD, 
East Lindsey District Council,http://statistics.data.gov.uk/id/local-authority/32UC,Theatre Manager,Performers and Entertainers Fees,26/04/12,IJ00009084,7123.98,ORIGINAL ENTERTAINMENT PROGRAMMING LTD, 
East Lindsey District Council,http://statistics.data.gov.uk/id/local-authority/32UC,Theatre Manager,Performers and Entertainers Fees,26/04/12,IJ00009084,-297.6,ORIGINAL ENTERTAINMENT PROGRAMMING LTD, 
East Lindsey District Council,http://statistics.data.gov.uk/id/local-authority/32UC,Skegness Town Hall,Buildings Maintenance - Programmed,26/04/12,IJ00009061,550,ORONA LTD, 
East Lindsey District Council,http://statistics.data.gov.uk/id/local-authority/32UC,General Elections,Postages,26/04/12,IJ00008826,775.5,ROYAL MAIL, 
East Lindsey District Council,http://statistics.data.gov.uk/id/local-authority/32UC,"Tedder Hall, Manby Park, Manby",Buildings Maintenance - Programmed,26/04/12,IJ00008966,1050,SAFE & SOUND SECURITY SYSTEMS LINKS LTD, 
East Lindsey District Council,http://statistics.data.gov.uk/id/local-authority/32UC,Car Parks General,Car Parking Charges,26/04/12,IJ00008955,600,SEDEK LIMITED, 
East Lindsey District Council,http://statistics.data.gov.uk/id/local-authority/32UC,Car Parks General,Furniture and Equipment,26/04/12,IJ00008956,1922.4,SEDEK LIMITED, 
East Lindsey District Council,http://statistics.data.gov.uk/id/local-authority/32UC,Disabled Facilities Grant,Grants and Contributions to Outside Bodies- No Service Recei,26/04/12,IJ00008932,6388.34,SIBJON BUILDERS, 
East Lindsey District Council,http://statistics.data.gov.uk/id/local-authority/32UC,Imp.Grants,Other Revenue Grants Reimbursements & Contributions (Govt),26/04/12,IJ00008932,-570.39,SIBJON BUILDERS, 
East Lindsey District Council,http://statistics.data.gov.uk/id/local-authority/32UC,Horncastle Market,Electricity,26/04/12,IJ00009065,39.23,SOUTHERN ELECTRIC PLC, 
East Lindsey District Council,http://statistics.data.gov.uk/id/local-authority/32UC,Water Tower Residential Caravan Site,Electricity,26/04/12,IJ00009072,374.75,SOUTHERN ELECTRIC PLC, 
East Lindsey District Council,http://statistics.data.gov.uk/id/local-authority/32UC,Caravan Park(Kingfisher) Ingoldmells,Electricity,26/04/12,IJ00009072,6257.73,SOUTHERN ELECTRIC PLC, 
East Lindsey District Council,http://statistics.data.gov.uk/id/local-authority/32UC,Bowling Green North Parade Skegness,Electricity,26/04/12,IJ00009087,-437.91,SOUTHERN ELECTRIC PLC, 
East Lindsey District Council,http://statistics.data.gov.uk/id/local-authority/32UC,Skeg F/Shore Bowling Greens Sth Parade,Electricity,26/04/12,IJ00009093,-217.13,SOUTHERN ELECTRIC PLC, 
East Lindsey District Council,http://statistics.data.gov.uk/id/local-authority/32UC,"Car Park (Sea View)Quebec Rd,Mablethorpe",Electricity,26/04/12,IJ00009065,27.54,SOUTHERN ELECTRIC PLC, 
East Lindsey District Council,http://statistics.data.gov.uk/id/local-authority/32UC,"Car Park (Sea View)Quebec Rd,Mablethorpe",Electricity,26/04/12,IJ00009087,315.79,SOUTHERN ELECTRIC PLC, 
East Lindsey District Council,http://statistics.data.gov.uk/id/local-authority/32UC,"Car Park, Pier Sites, Skegness",Electricity,26/04/12,IJ00009093,-62.62,SOUTHERN ELECTRIC PLC, 
East Lindsey District Council,http://statistics.data.gov.uk/id/local-authority/32UC,Car Park(North Parade) Skegness,Electricity,26/04/12,IJ00009093,-104.16,SOUTHERN ELECTRIC PLC, 
East Lindsey District Council,http://statistics.data.gov.uk/id/local-authority/32UC,Meridian Leisure Centre,Electricity,26/04/12,IJ00009065,4420.49,SOUTHERN ELECTRIC PLC, 
East Lindsey District Council,http://statistics.data.gov.uk/id/local-authority/32UC,London Road Sports Centre,Electricity,26/04/12,IJ00009081,669.34,SOUTHERN ELECTRIC PLC, 
East Lindsey District Council,http://statistics.data.gov.uk/id/local-authority/32UC,Fairfield Enterprise Centre,Electricity,26/04/12,IJ00009065,789.37,SOUTHERN ELECTRIC PLC, 
East Lindsey District Council,http://statistics.data.gov.uk/id/local-authority/32UC,Skegness Managed Workspace,Electricity,26/04/12,IJ00009081,1051.27,SOUTHERN ELECTRIC PLC, 
East Lindsey District Council,http://statistics.data.gov.uk/id/local-authority/32UC,Managed Workspace Golf Road Mablethorpe,Electricity,26/04/12,IJ00009093,470.31,SOUTHERN ELECTRIC PLC, 
East Lindsey District Council,http://statistics.data.gov.uk/id/local-authority/32UC,"Mablethorpe TIC, Louth Hotel, M'thorpe",Electricity,26/04/12,IJ00009065,364.8,SOUTHERN ELECTRIC PLC, 
East Lindsey District Council,http://statistics.data.gov.uk/id/local-authority/32UC,"Gardens,(Pleasure) Sutton on Sea",Electricity,26/04/12,IJ00009062,-35.89,SOUTHERN ELECTRIC PLC, 
East Lindsey District Council,http://statistics.data.gov.uk/id/local-authority/32UC,Gardens Southern Boating Lake Skegness,Electricity,26/04/12,IJ00009062,43.42,SOUTHERN ELECTRIC PLC, 
East Lindsey District Council,http://statistics.data.gov.uk/id/local-authority/32UC,Gardens Southern Boating Lake Skegness,Electricity,26/04/12,IJ00009062,-43.6,SOUTHERN ELECTRIC PLC, 
East Lindsey District Council,http://statistics.data.gov.uk/id/local-authority/32UC,"Castle Lane Toilets, Coningsby",Electricity,26/04/12,IJ00009065,73.64,SOUTHERN ELECTRIC PLC, 
East Lindsey District Council,http://statistics.data.gov.uk/id/local-authority/32UC,"St Lawrence St Toilets, Horncastle",Electricity,26/04/12,IJ00009065,218.38,SOUTHERN ELECTRIC PLC, 
East Lindsey District Council,http://statistics.data.gov.uk/id/local-authority/32UC,"Central Prom Toilets, Mablethorpe",Electricity,26/04/12,IJ00009065,131.42,SOUTHERN ELECTRIC PLC, 
East Lindsey District Council,http://statistics.data.gov.uk/id/local-authority/32UC,"Queens Park Toilets, Mablethorpe",Electricity,26/04/12,IJ00009072,225.58,SOUTHERN ELECTRIC PLC, 
East Lindsey District Council,http://statistics.data.gov.uk/id/local-authority/32UC,"Queens Park Toilets, Mablethorpe",Electricity,26/04/12,IJ00009072,2630.5,SOUTHERN ELECTRIC PLC, 
East Lindsey District Council,http://statistics.data.gov.uk/id/local-authority/32UC,"Dunes Theatre Toilets, Mablethorpe",Electricity,26/04/12,IJ00009072,227.07,SOUTHERN ELECTRIC PLC, 
East Lindsey District Council,http://statistics.data.gov.uk/id/local-authority/32UC,"Pumping Station,Ruskin Rd Mablethorpe",Electricity,26/04/12,IJ00009072,44.93,SOUTHERN ELECTRIC PLC, 
East Lindsey District Council,http://statistics.data.gov.uk/id/local-authority/32UC,"Promenade, Trusthorpe",Electricity,26/04/12,IJ00009072,330.71,SOUTHERN ELECTRIC PLC, 
East Lindsey District Council,http://statistics.data.gov.uk/id/local-authority/32UC,"Promenade, Sutton on Sea",Electricity,26/04/12,IJ00009072,116.2,SOUTHERN ELECTRIC PLC, 
East Lindsey District Council,http://statistics.data.gov.uk/id/local-authority/32UC,"Seacroft Road Toilets, Mablethorpe",Electricity,26/04/12,IJ00009081,209.14,SOUTHERN ELECTRIC PLC, 
East Lindsey District Council,http://statistics.data.gov.uk/id/local-authority/32UC,"Park,Queens,The Boulevard,Mablethorpe",Electricity,26/04/12,IJ00009081,1124.2,SOUTHERN ELECTRIC PLC, 
East Lindsey District Council,http://statistics.data.gov.uk/id/local-authority/32UC,"Park Square Toilets, Mablethorpe",Electricity,26/04/12,IJ00009087,84.8,SOUTHERN ELECTRIC PLC, 
East Lindsey District Council,http://statistics.data.gov.uk/id/local-authority/32UC,"High Street Toilets, Spilsby",Electricity,26/04/12,IJ00009087,7.57,SOUTHERN ELECTRIC PLC, 
East Lindsey District Council,http://statistics.data.gov.uk/id/local-authority/32UC,"York Road Toilets, Sutton",Electricity,26/04/12,IJ00009087,133.01,SOUTHERN ELECTRIC PLC, 
East Lindsey District Council,http://statistics.data.gov.uk/id/local-authority/32UC,"North Promenade,Mablethorpe",Electricity,26/04/12,IJ00009087,-347.95,SOUTHERN ELECTRIC PLC, 
East Lindsey District Council,http://statistics.data.gov.uk/id/local-authority/32UC,"Roman Bank Toilets, Skegness",Electricity,26/04/12,IJ00009087,-83.94,SOUTHERN ELECTRIC PLC, 
East Lindsey District Council,http://statistics.data.gov.uk/id/local-authority/32UC,"Adj Golf Club Toilets, Sutton",Electricity,26/04/12,IJ00009093,108.42,SOUTHERN ELECTRIC PLC, 
East Lindsey District Council,http://statistics.data.gov.uk/id/local-authority/32UC,"Pumping Station,Bolingbroke Road,Louth",Electricity,26/04/12,IJ00009093,-38.62,SOUTHERN ELECTRIC PLC, 
East Lindsey District Council,http://statistics.data.gov.uk/id/local-authority/32UC,"Gardens,(Pleasure) Sutton on Sea",Electricity,26/04/12,IJ00009093,875.6,SOUTHERN ELECTRIC PLC, 
East Lindsey District Council,http://statistics.data.gov.uk/id/local-authority/32UC,Gardens Southern Boating Lake Skegness,Electricity,26/04/12,IJ00009093,-1230.39,SOUTHERN ELECTRIC PLC, 
East Lindsey District Council,http://statistics.data.gov.uk/id/local-authority/32UC,SM Economic Regen & Property,Electricity,26/04/12,IJ00009087,25.93,SOUTHERN ELECTRIC PLC, 
East Lindsey District Council,http://statistics.data.gov.uk/id/local-authority/32UC,Sutton Multi Activity Community Area,Electricity,26/04/12,IJ00009062,193.85,SOUTHERN ELECTRIC PLC, 
East Lindsey District Council,http://statistics.data.gov.uk/id/local-authority/32UC,Playing Fields(Memorial) Wainfleet Skeg,Electricity,26/04/12,IJ00009072,901.45,SOUTHERN ELECTRIC PLC, 
East Lindsey District Council,http://statistics.data.gov.uk/id/local-authority/32UC,Mablethorpe Illuminations,Electricity,26/04/12,IJ00009081,111.83,SOUTHERN ELECTRIC PLC, 
East Lindsey District Council,http://statistics.data.gov.uk/id/local-authority/32UC,Mablethorpe Illuminations,Electricity,26/04/12,IJ00009087,-86.99,SOUTHERN ELECTRIC PLC, 
East Lindsey District Council,http://statistics.data.gov.uk/id/local-authority/32UC,Tower Gardens-Rutland Road Skeg,Electricity,26/04/12,IJ00009072,-536.69,SOUTHERN ELECTRIC PLC, 
East Lindsey District Council,http://statistics.data.gov.uk/id/local-authority/32UC,Theatre Manager,Electricity,26/04/12,IJ00009081,1672.24,SOUTHERN ELECTRIC PLC, 
East Lindsey District Council,http://statistics.data.gov.uk/id/local-authority/32UC,New Gdn Cafe Pleasure Gdns Sutton on Sea,Electricity,26/04/12,IJ00009062,480.49,SOUTHERN ELECTRIC PLC, 
East Lindsey District Council,http://statistics.data.gov.uk/id/local-authority/32UC,"Gardeners Rest Room, Tower Esp.Skegness",Electricity,26/04/12,IJ00009062,-67.11,SOUTHERN ELECTRIC PLC, 
East Lindsey District Council,http://statistics.data.gov.uk/id/local-authority/32UC,"Depot,Fairfield,Louth",Electricity,26/04/12,IJ00009062,288.5,SOUTHERN ELECTRIC PLC, 
East Lindsey District Council,http://statistics.data.gov.uk/id/local-authority/32UC,Ice Cream Kiosk Pleasure Gdns Sutton,Electricity,26/04/12,IJ00009062,206.42,SOUTHERN ELECTRIC PLC, 
East Lindsey District Council,http://statistics.data.gov.uk/id/local-authority/32UC,Hcastle Ind Dev-4 Factory Units,Electricity,26/04/12,IJ00009065,44.84,SOUTHERN ELECTRIC PLC, 
East Lindsey District Council,http://statistics.data.gov.uk/id/local-authority/32UC,"Old Area Office, Victoria Rd, Mab",Electricity,26/04/12,IJ00009065,193.32,SOUTHERN ELECTRIC PLC, 
East Lindsey District Council,http://statistics.data.gov.uk/id/local-authority/32UC,"Tedder Hall, Manby Park, Manby",Electricity,26/04/12,IJ00009081,3668.63,SOUTHERN ELECTRIC PLC, 
East Lindsey District Council,http://statistics.data.gov.uk/id/local-authority/32UC,Mablethorpe & Sutton Depot Victoria Rd,Electricity,26/04/12,IJ00009081,227.92,SOUTHERN ELECTRIC PLC, 
East Lindsey District Council,http://statistics.data.gov.uk/id/local-authority/32UC,Skegness Foreshore Waterway,Electricity,26/04/12,IJ00009081,469.7,SOUTHERN ELECTRIC PLC, 
East Lindsey District Council,http://statistics.data.gov.uk/id/local-authority/32UC,"Gymnasium,Tedder Hall Manby Park, Manby",Electricity,26/04/12,IJ00009081,183.08,SOUTHERN ELECTRIC PLC, 
East Lindsey District Council,http://statistics.data.gov.uk/id/local-authority/32UC,Mab F/Shore Nth Prom Cafe,Electricity,26/04/12,IJ00009087,1030.85,SOUTHERN ELECTRIC PLC, 
East Lindsey District Council,http://statistics.data.gov.uk/id/local-authority/32UC,Mablethorpe Area Office & Library,Electricity,26/04/12,IJ00009093,1017.66,SOUTHERN ELECTRIC PLC, 
East Lindsey District Council,http://statistics.data.gov.uk/id/local-authority/32UC,"CCTV Off (ex toilets) nr Dunes, Mab",Electricity,26/04/12,IJ00009093,22.24,SOUTHERN ELECTRIC PLC, 
East Lindsey District Council,http://statistics.data.gov.uk/id/local-authority/32UC,ELPH-Disabled Facilities Grant,Grants and Contributions to Outside Bodies- No Service Recei,26/04/12,IJ00008928,1922.92,SPIRE WINDOW SYSTEMS, 
East Lindsey District Council,http://statistics.data.gov.uk/id/local-authority/32UC,Imp.Grants,Other Revenue Grants Reimbursements & Contributions (Govt),26/04/12,IJ00008928,-417.5,SPIRE WINDOW SYSTEMS, 
East Lindsey District Council,http://statistics.data.gov.uk/id/local-authority/32UC,Horncastle Pool Manager,Materials and Consumables,26/04/12,IJ00008864,355.48,STOWLIN LTD, 
East Lindsey District Council,http://statistics.data.gov.uk/id/local-authority/32UC,Horncastle Pool Manager,Cleaning Contract,26/04/12,IJ00008864,416.5,STOWLIN LTD, 
East Lindsey District Council,http://statistics.data.gov.uk/id/local-authority/32UC,Theatre Manager,Performers and Entertainers Fees,26/04/12,IJ00009091,2356.12,SWEENEY ENTERTAINMENTS, 
East Lindsey District Council,http://statistics.data.gov.uk/id/local-authority/32UC,Theatre Manager,Performers and Entertainers Fees,26/04/12,IJ00009091,-150,SWEENEY ENTERTAINMENTS, 
East Lindsey District Council,http://statistics.data.gov.uk/id/local-authority/32UC,Fairfield Enterprise Centre,Postages,26/04/12,IJ00009086,2000,TELESET, 
East Lindsey District Council,http://statistics.data.gov.uk/id/local-authority/32UC,Car Park(The Bain) Horncastle,Payments to Bodies in Respect of Income Collected,26/04/12,IJ00009023,4079.27,TESCOS STORES LTD, 
East Lindsey District Council,http://statistics.data.gov.uk/id/local-authority/32UC,Grounds Maintenance Contract No.2,Agency Staff,26/04/12,IJ00008841,2023.63,THE WORKSHOP (WISBECH) LIMITED, 
East Lindsey District Council,http://statistics.data.gov.uk/id/local-authority/32UC,Other Cleaning,Agency Staff,26/04/12,IJ00009082,2129.18,THE WORKSHOP (WISBECH) LIMITED, 
East Lindsey District Council,http://statistics.data.gov.uk/id/local-authority/32UC,ELPH-Disabled Facilities Grant,Grants and Contributions to Outside Bodies- No Service Recei,26/04/12,IJ00008926,3932.86,THM CONSTRUCTION, 
East Lindsey District Council,http://statistics.data.gov.uk/id/local-authority/32UC,Imp.Grants,Other Revenue Grants Reimbursements & Contributions (Govt),26/04/12,IJ00008926,-351.15,THM CONSTRUCTION, 
East Lindsey District Council,http://statistics.data.gov.uk/id/local-authority/32UC,Theatre Manager,Performers and Entertainers Fees,26/04/12,IJ00009088,2923.42,TIMELESS THEATRE PRODUCTIONS LTD, 
East Lindsey District Council,http://statistics.data.gov.uk/id/local-authority/32UC,Theatre Manager,Performers and Entertainers Fees,26/04/12,IJ00009088,-330,TIMELESS THEATRE PRODUCTIONS LTD, 
East Lindsey District Council,http://statistics.data.gov.uk/id/local-authority/32UC,Tower Gardens-Rutland Road Skeg,Buildings Maintenance - Programmed,26/04/12,IJ00008972,750,TOPDRIVE LTD, 
East Lindsey District Council,http://statistics.data.gov.uk/id/local-authority/32UC,Other Cleaning,Staff Training Expenses,26/04/12,IJ00008869,1372.2,UNIVERSITY OF LINCOLN, 
East Lindsey District Council,http://statistics.data.gov.uk/id/local-authority/32UC,Waste Services Manager,Fuel & Oil,26/04/12,IJ00008868,14134.36,WATSON PETROLEUM LTD, 
East Lindsey District Council,http://statistics.data.gov.uk/id/local-authority/32UC,Waste Services Manager,Fuel & Oil,26/04/12,IJ00008961,14281.19,WATSON PETROLEUM LTD, 
East Lindsey District Council,http://statistics.data.gov.uk/id/local-authority/32UC,Jubilee Park Swimming Pool,Professional & Contractors Fees,26/04/12,IJ00009115,40107,WOODHALL SPA PARISH COUNCIL, 
